Workbook

Sheet Základní údaje
A1: Centrum kolejí Jarov + xPORT VŠE
A2: OBDOBÍ:
A3: 2024-03-01 | B3: 2028-02-29
A4: Identifikace subjektu podávajícího nabídku:
A5: Název subjektu:
A6: IČ:
A7: Sídlo:
A8: Zapsaná v:
D9: Předpoklad roční inflace
D10: 1. rok | E10: 2. rok | F10: 3. rok | G10: 4. rok
A11: CENA pracovní dny [Kč/hodinu/člověka]: | C11: =IF(B11<>0,B12/B11,0) -> 0 | D11: 0 | E11: 0.03 | F11: 0.03 | G11: 0.03
A12: CENA víkendy [Kč/hodinu/člověka]: | B12: 0 | C12: =IF(B11<>0,(5*B11+2*B12)/7/B11,0) -> 0 | D12: 1 | E12: =1+E11 -> 1.03 | F12: =1+F11 -> 1.03 | G12: 1.03
D13: 1 | E13: =+D13*E12 -> 1.03 | F13: =+E13*F12 -> 1.0609 | G13: 1.092727 | H13: =SUM(D13:G13)/4 -> 1.04590675
A15: CENA CELKEM ZA ZAKÁZKU: | B15: ='Rozpis úklidu'!C93 -> 0

Sheet Rozpis úklidu
A1: ='Základní údaje'!A1 -> Centrum kolejí Jarov + xPORT VŠE | C1: ='Základní údaje'!A2 -> OBDOBÍ: | D1: ='Základní údaje'!A3 -> 2024-03-01 | E1: ='Základní údaje'!B3 -> 2028-02-29
A2: Cena za 1 úklidovou hodinu: | C2: ='Základní údaje'!B11 -> 0 | D2: Kč/hod.
A3: Úklidová jednotka | B3: xPORT | C3: plocha [m²] | D3: kusy [-] | E3: počet úklidových jednotek | F3: CELKEM [m²] [ks] | G3: uklízí se | H3: Četnost úklidu v sezóně | I3: počet úklidů | J3: sezonní týden od | K3: sezonní týden do | L3: uklízí se v pracovní dny | M3: uklízí se o víkendech | N3: Popis činnosti | O3: Zadavatelem předpokládaný čas na úklidovou jednotku [min] | P3: Uchazečem navrhovaný čas na úklidovou jednotku [min.] | Q3: celkový čas úklidu všech úklidových jednotek [hod.] | R3: Cena za úklidovou jednotku [Kč] | S3: cena celkem za všechny úklidové jednotky (prac. dny) [Kč] | T3: Cena celkem za období úklidu [Kč] | U3: Poznámka
A4: Vstupní schodiště venkovní-podesta | C4: =5.4*1.8 -> 9.72 | E4: 1 | F4: =C4*E4+D4*E4 -> 9.72 | G4: denně | I4: 1 | L4: 1 | M4: 0 | N4: Typová činnost č.: 1 dlažba + čistič bot | O4: 5 | Q4: =IF(P4=0,O4*E4/60,P4*E4/60) -> 0.08333333333 | R4: =ROUND(IF(P4=0,O4/60*$C$2,P4/60*$C$2),0) -> 0 | S4: =R4*E4 -> 0 | T4: =IF(G4="denně",S4*I4*$C$89,IF(G4="týdně",S4*I4*$C$90,IF(G4="měsíčně",S4*I4*$C$91,IF(G4="čtvrtletně",S4*I4*4*$C$92,IF(G4="ročně",S4*I4*$C$92,I4*S4*$C$92)))))*'Základní údaje'!$H$13*IF(M4=1,'Základní údaje'!$C$12,1) -> 0
A5: Vstupní schodiště venkovní-schody | C5: =5.4*3.6 -> 19.44 | E5: 1 | F5: =C5*E5+D5*E5 -> 19.44 | G5: denně | I5: 1 | L5: 1 | M5: 0 | N5: Typová činnost č.: 1 dlažba | O5: 5 | Q5: =IF(P5=0,O5*E5/60,P5*E5/60) -> 0.08333333333 | R5: =ROUND(IF(P5=0,O5/60*$C$2,P5/60*$C$2),0) -> 0 | S5: =R5*E5 -> 0 | T5: =IF(G5="denně",S5*I5*$C$89,IF(G5="týdně",S5*I5*$C$90,IF(G5="měsíčně",S5*I5*$C$91,IF(G5="čtvrtletně",S5*I5*4*$C$92,IF(G5="ročně",S5*I5*$C$92,I5*S5*$C$92)))))*'Základní údaje'!$H$13*IF(M5=1,'Základní údaje'!$C$12,1) -> 0
A6: Zádveří - 1. NP | C6: =5.4*2 -> 10.8 | E6: 1 | F6: =C6*E6+D6*E6 -> 10.8 | G6: denně | I6: 1 | L6: 1 | M6: 0 | N6: Typová činnost č.: 1 dlažba + zátěžový koberec | O6: 5 | Q6: =IF(P6=0,O6*E6/60,P6*E6/60) -> 0.08333333333 | R6: =ROUND(IF(P6=0,O6/60*$C$2,P6/60*$C$2),0) -> 0 | S6: =R6*E6 -> 0 | T6: =IF(G6="denně",S6*I6*$C$89,IF(G6="týdně",S6*I6*$C$90,IF(G6="měsíčně",S6*I6*$C$91,IF(G6="čtvrtletně",S6*I6*4*$C$92,IF(G6="ročně",S6*I6*$C$92,I6*S6*$C$92)))))*'Základní údaje'!$H$13*IF(M6=1,'Základní údaje'!$C$12,1) -> 0
A7: VSTUPNÍ HALA - 1. NP | C7: =8.9*9.6+6.8*2.9+1.9*3 -> 110.86 | E7: 1 | F7: 110.86 | G7: denně | I7: 1 | L7: 1 | M7: 0 | N7: Typová činnost č.: 1 dlažba + 6 m2 zátěžový koberec | O7: =25*C7/60 -> 46.19166667 | Q7: 0.7698611111 | R7: 0 | S7: 0 | T7: =IF(G7="denně",S7*I7*$C$89,IF(G7="týdně",S7*I7*$C$90,IF(G7="měsíčně",S7*I7*$C$91,IF(G7="čtvrtletně",S7*I7*4*$C$92,IF(G7="ročně",S7*I7*$C$92,I7*S7*$C$92)))))*'Základní údaje'!$H$13*IF(M7=1,'Základní údaje'!$C$12,1) -> 0
A8: WC - 1. NP vestibul páni 2x kabinka, 3x pisoár, 2x umyvadlo | C8: =2.4*2.3+3.1*3.6 -> 16.68 | E8: 1 | F8: 16.68 | G8: denně | I8: 1 | L8: 1 | M8: 0 | N8: Typová činnost č.: 14 dlažba | O8: 8 | Q8: 0.1333333333 | R8: 0 | S8: 0 | T8: =IF(G8="denně",S8*I8*$C$89,IF(G8="týdně",S8*I8*$C$90,IF(G8="měsíčně",S8*I8*$C$91,IF(G8="čtvrtletně",S8*I8*4*$C$92,IF(G8="ročně",S8*I8*$C$92,I8*S8*$C$92)))))*'Základní údaje'!$H$13*IF(M8=1,'Základní údaje'!$C$12,1) -> 0
A9: WC - 1. NP vestibul dámy 3x kabinka, 2x umyvadlo | C9: =3.9*2+3*2.6 -> 15.6 | E9: 1 | F9: =C9*E9+D9*E9 -> 15.6 | G9: denně | I9: 1 | L9: 1 | M9: 0 | N9: Typová činnost č.: 14 dlažba | O9: 8 | Q9: =IF(P9=0,O9*E9/60,P9*E9/60) -> 0.1333333333 | R9: =ROUND(IF(P9=0,O9/60*$C$2,P9/60*$C$2),0) -> 0 | S9: =R9*E9 -> 0 | T9: =IF(G9="denně",S9*I9*$C$89,IF(G9="týdně",S9*I9*$C$90,IF(G9="měsíčně",S9*I9*$C$91,IF(G9="čtvrtletně",S9*I9*4*$C$92,IF(G9="ročně",S9*I9*$C$92,I9*S9*$C$92)))))*'Základní údaje'!$H$13*IF(M9=1,'Základní údaje'!$C$12,1) -> 0
A10: Příplatek za silně znečištěné WC | D10: 1 | E10: 1 | F10: 1 | G10: měsíčně | I10: 2 | L10: 1 | M10: 0 | N10: Typová činnost č.: 14 (nutno doložit fotodokumentací) | O10: 20 | Q10: 0.3333333333 | R10: 0 | S10: 0 | T10: =IF(G10="denně",S10*I10*$C$89,IF(G10="týdně",S10*I10*$C$90,IF(G10="měsíčně",S10*I10*$C$91,IF(G10="čtvrtletně",S10*I10*4*$C$92,IF(G10="ročně",S10*I10*$C$92,I10*S10*$C$92)))))*'Základní údaje'!$H$13*IF(M10=1,'Základní údaje'!$C$12,1) -> 0
A11: Mytí vnitřních skleněných ploch | C11: ='kanc.+skleň.pl.'!F8 -> 47 | E11: 1 | F11: =C11*E11+D11*E11 -> 47 | G11: měsíčně | I11: 1 | L11: 1 | M11: 0 | N11: Typová činnost č. 12 | O11: =(120*C11)/60 -> 94 | Q11: =IF(P11=0,O11*E11/60,P11*E11/60) -> 1.566666667 | R11: =ROUND(IF(P11=0,O11/60*$C$2,P11/60*$C$2),0) -> 0 | S11: =R11*E11 -> 0 | T11: =IF(G11="denně",S11*I11*$C$89,IF(G11="týdně",S11*I11*$C$90,IF(G11="měsíčně",S11*I11*$C$91,IF(G11="čtvrtletně",S11*I11*4*$C$92,IF(G11="ročně",S11*I11*$C$92,I11*S11*$C$92)))))*'Základní údaje'!$H$13*IF(M11=1,'Základní údaje'!$C$12,1) -> 0
A12: SCHODIŠTĚ včetně podest - ze suterénu k bytům (3. NP) (3 podlaží) | C12: =0.25*1.2*60+3*1.3+2.5+6.2*5.5+6.4*3.7+3*4 -> 94.18 | E12: 1 | F12: =C12*E12+D12*E12 -> 94.18 | G12: týdně | I12: 1 | L12: 1 | M12: 0 | N12: Typová činnost č.: 1 dlažba | O12: =20*C12/60 -> 31.39333333 | Q12: =IF(P12=0,O12*E12/60,P12*E12/60) -> 0.5232222222 | R12: =ROUND(IF(P12=0,O12/60*$C$2,P12/60*$C$2),0) -> 0 | S12: =R12*E12 -> 0 | T12: =IF(G12="denně",S12*I12*$C$89,IF(G12="týdně",S12*I12*$C$90,IF(G12="měsíčně",S12*I12*$C$91,IF(G12="čtvrtletně",S12*I12*4*$C$92,IF(G12="ročně",S12*I12*$C$92,I12*S12*$C$92)))))*'Základní údaje'!$H$13*IF(M12=1,'Základní údaje'!$C$12,1) -> 0
A13: Výtah ze suterénu k bytům | C13: =1.1*1.4 -> 1.54 | E13: 1 | F13: =C13*E13+D13*E13 -> 1.54 | G13: týdně | I13: 1 | L13: 1 | M13: 0 | N13: Typová činnost č.: 16 | O13: 5 | Q13: =IF(P13=0,O13*E13/60,P13*E13/60) -> 0.08333333333 | R13: =ROUND(IF(P13=0,O13/60*$C$2,P13/60*$C$2),0) -> 0 | S13: =R13*E13 -> 0 | T13: =IF(G13="denně",S13*I13*$C$89,IF(G13="týdně",S13*I13*$C$90,IF(G13="měsíčně",S13*I13*$C$91,IF(G13="čtvrtletně",S13*I13*4*$C$92,IF(G13="ročně",S13*I13*$C$92,I13*S13*$C$92)))))*'Základní údaje'!$H$13*IF(M13=1,'Základní údaje'!$C$12,1) -> 0
A14: Chodba před byty, 3. NP | C14: =3.6*1.5+8.2*1.5 -> 17.7 | E14: 1 | F14: 17.7 | G14: týdně | I14: 1 | L14: 1 | M14: 0 | N14: Typová činnost č.: 1 dlažba | O14: =15*C14/60 -> 4.425 | Q14: 0.07375 | R14: 0 | S14: =R14*E14 -> 0 | T14: =IF(G14="denně",S14*I14*$C$89,IF(G14="týdně",S14*I14*$C$90,IF(G14="měsíčně",S14*I14*$C$91,IF(G14="čtvrtletně",S14*I14*4*$C$92,IF(G14="ročně",S14*I14*$C$92,I14*S14*$C$92)))))*'Základní údaje'!$H$13*IF(M14=1,'Základní údaje'!$C$12,1) -> 0
A15: ZADNÍ SCHODIŠTĚ včetně podest - ze suterénu k Xport (3. NP) (3 podlaží) | C15: =1.2*0.25*34+3*1.1*2+1.3*4+0.8*(1.15*4) -> 25.68 | E15: 1 | F15: =C15*E15+D15*E15 -> 25.68 | G15: měsíčně | I15: 1 | L15: 1 | M15: 0 | N15: Typová činnost č.: 1 dlažba | O15: =15*C15/60 -> 6.42 | Q15: =IF(P15=0,O15*E15/60,P15*E15/60) -> 0.107 | R15: =ROUND(IF(P15=0,O15/60*$C$2,P15/60*$C$2),0) -> 0 | S15: =R15*E15 -> 0 | T15: =IF(G15="denně",S15*I15*$C$89,IF(G15="týdně",S15*I15*$C$90,IF(G15="měsíčně",S15*I15*$C$91,IF(G15="čtvrtletně",S15*I15*4*$C$92,IF(G15="ročně",S15*I15*$C$92,I15*S15*$C$92)))))*'Základní údaje'!$H$13*IF(M15=1,'Základní údaje'!$C$12,1) -> 0
A16: KANCELÁŘE - 1. NP 15x (viz list "Kanceláře") | D16: 1 | E16: 15 | F16: 15 | G16: denně | I16: 1 | L16: 1 | M16: 0 | N16: Typová činnost č.: 3. a | O16: 1.5 | Q16: 0.375 | R16: 0 | S16: 0 | T16: =IF(G16="denně",S16*I16*$C$89,IF(G16="týdně",S16*I16*$C$90,IF(G16="měsíčně",S16*I16*$C$91,IF(G16="čtvrtletně",S16*I16*4*$C$92,IF(G16="ročně",S16*I16*$C$92,I16*S16*$C$92)))))*'Základní údaje'!$H$13*IF(M16=1,'Základní údaje'!$C$12,1) -> 0
A17: KANCELÁŘE - 1. NP 14x (viz list "Kanceláře") | C17: ='kanc.+skleň.pl.'!B17 -> 265 | E17: 1 | F17: =C17*E17+D17*E17 -> 265 | G17: týdně | I17: 2 | L17: 1 | M17: 0 | N17: Typová činnost č.: 3. b koberec | O17: =15*C17/60 -> 66.25 | Q17: =IF(P17=0,O17*E17/60,P17*E17/60) -> 1.104166667 | R17: =ROUND(IF(P17=0,O17/60*$C$2,P17/60*$C$2),0) -> 0 | S17: =R17*E17 -> 0 | T17: =IF(G17="denně",S17*I17*$C$89,IF(G17="týdně",S17*I17*$C$90,IF(G17="měsíčně",S17*I17*$C$91,IF(G17="čtvrtletně",S17*I17*4*$C$92,IF(G17="ročně",S17*I17*$C$92,I17*S17*$C$92)))))*'Základní údaje'!$H$13*IF(M17=1,'Základní údaje'!$C$12,1) -> 0
A18: KANCELÁŘ 146 - 1. NP | C18: ='kanc.+skleň.pl.'!B19 -> 21.94 | E18: 1 | F18: =C18*E18+D18*E18 -> 21.94 | G18: týdně | I18: 2 | L18: 1 | M18: 0 | N18: Typová činnost č.: 3. b linoleum | O18: 5.485 | Q18: =IF(P18=0,O18*E18/60,P18*E18/60) -> 0.09141666667 | R18: =ROUND(IF(P18=0,O18/60*$C$2,P18/60*$C$2),0) -> 0 | S18: =R18*E18 -> 0 | T18: =IF(G18="denně",S18*I18*$C$89,IF(G18="týdně",S18*I18*$C$90,IF(G18="měsíčně",S18*I18*$C$91,IF(G18="čtvrtletně",S18*I18*4*$C$92,IF(G18="ročně",S18*I18*$C$92,I18*S18*$C$92)))))*'Základní údaje'!$H$13*IF(M18=1,'Základní údaje'!$C$12,1) -> 0
A19: Chodba před kancelářemi | C19: =5.6*2.4+2.9*8.3+15.3*1.8+1.6*3.6+3.7*13+13.7*1.5 -> 139.46 | E19: 1 | F19: =C19*E19+D19*E19 -> 139.46 | G19: týdně | I19: 2 | L19: 1 | M19: 0 | N19: Typová činnost č.: 3. b koberec/dlažba | O19: 34.865 | Q19: =IF(P19=0,O19*E19/60,P19*E19/60) -> 0.5810833333 | R19: =ROUND(IF(P19=0,O19/60*$C$2,P19/60*$C$2),0) -> 0 | S19: =R19*E19 -> 0 | T19: =IF(G19="denně",S19*I19*$C$89,IF(G19="týdně",S19*I19*$C$90,IF(G19="měsíčně",S19*I19*$C$91,IF(G19="čtvrtletně",S19*I19*4*$C$92,IF(G19="ročně",S19*I19*$C$92,I19*S19*$C$92)))))*'Základní údaje'!$H$13*IF(M19=1,'Základní údaje'!$C$12,1) -> 0
A20: Kuchyňka u kanceláří | C20: =1.8*2.9 -> 5.22 | E20: 1 | F20: =C20*E20+D20*E20 -> 5.22 | G20: denně | I20: 1 | L20: 1 | M20: 0 | N20: Typová činnost č.: 5 dlažba | O20: 1.305 | Q20: =IF(P20=0,O20*E20/60,P20*E20/60) -> 0.02175 | R20: =ROUND(IF(P20=0,O20/60*$C$2,P20/60*$C$2),0) -> 0 | S20: =R20*E20 -> 0 | T20: =IF(G20="denně",S20*I20*$C$89,IF(G20="týdně",S20*I20*$C$90,IF(G20="měsíčně",S20*I20*$C$91,IF(G20="čtvrtletně",S20*I20*4*$C$92,IF(G20="ročně",S20*I20*$C$92,I20*S20*$C$92)))))*'Základní údaje'!$H$13*IF(M20=1,'Základní údaje'!$C$12,1) -> 0
A21: Zasedací místnost + komora - 1. NP | C21: =5.8*6.1+1.8+1.8 -> 38.98 | E21: 1 | F21: =C21*E21+D21*E21 -> 38.98 | G21: týdně | I21: 2 | L21: 1 | M21: 0 | N21: Typová činnost č.: 17 koberec | O21: 9.745 | Q21: =IF(P21=0,O21*E21/60,P21*E21/60) -> 0.1624166667 | R21: =ROUND(IF(P21=0,O21/60*$C$2,P21/60*$C$2),0) -> 0 | S21: =R21*E21 -> 0 | T21: =IF(G21="denně",S21*I21*$C$89,IF(G21="týdně",S21*I21*$C$90,IF(G21="měsíčně",S21*I21*$C$91,IF(G21="čtvrtletně",S21*I21*4*$C$92,IF(G21="ročně",S21*I21*$C$92,I21*S21*$C$92)))))*'Základní údaje'!$H$13*IF(M21=1,'Základní údaje'!$C$12,1) -> 0
A22: Vynesení pytel ze skartovačky (zasedací místnost) | D22: 1 | E22: 1 | F22: =C22*E22+D22*E22 -> 1 | G22: týdně | I22: 1 | L22: 1 | M22: 0 | N22: Typová činnost č.: 3. a | O22: 10 | Q22: =IF(P22=0,O22*E22/60,P22*E22/60) -> 0.1666666667 | R22: =ROUND(IF(P22=0,O22/60*$C$2,P22/60*$C$2),0) -> 0 | S22: =R22*E22 -> 0 | T22: =IF(G22="denně",S22*I22*$C$89,IF(G22="týdně",S22*I22*$C$90,IF(G22="měsíčně",S22*I22*$C$91,IF(G22="čtvrtletně",S22*I22*4*$C$92,IF(G22="ročně",S22*I22*$C$92,I22*S22*$C$92)))))*'Základní údaje'!$H$13*IF(M22=1,'Základní údaje'!$C$12,1) -> 0
A23: Sprcha dámy (kanceláře) | C23: =2.7*1.8 -> 4.86 | E23: 1 | F23: =C23*E23+D23*E23 -> 4.86 | G23: týdně | I23: 2 | L23: 1 | M23: 0 | N23: Typová činnost č.: 15 dlažba | O23: =15*C23/60 -> 1.215 | Q23: =IF(P23=0,O23*E23/60,P23*E23/60) -> 0.02025 | R23: =ROUND(IF(P23=0,O23/60*$C$2,P23/60*$C$2),0) -> 0 | S23: =R23*E23 -> 0 | T23: =IF(G23="denně",S23*I23*$C$89,IF(G23="týdně",S23*I23*$C$90,IF(G23="měsíčně",S23*I23*$C$91,IF(G23="čtvrtletně",S23*I23*4*$C$92,IF(G23="ročně",S23*I23*$C$92,I23*S23*$C$92)))))*'Základní údaje'!$H$13*IF(M23=1,'Základní údaje'!$C$12,1) -> 0
A24: Sprcha páni (kanceláře) | C24: =1.1*2.6 -> 2.86 | E24: 1 | F24: 2.86 | G24: týdně | I24: 2 | L24: 1 | M24: 0 | N24: Typová činnost č.: 15 dlažba | O24: 0.715 | Q24: 0.01191666667 | R24: 0 | S24: 0 | T24: =IF(G24="denně",S24*I24*$C$89,IF(G24="týdně",S24*I24*$C$90,IF(G24="měsíčně",S24*I24*$C$91,IF(G24="čtvrtletně",S24*I24*4*$C$92,IF(G24="ročně",S24*I24*$C$92,I24*S24*$C$92)))))*'Základní údaje'!$H$13*IF(M24=1,'Základní údaje'!$C$12,1) -> 0
A25: WC dány (kanceláře) 2x záchod, 2x umyvadlo | C25: =2.8*4 -> 11.2 | E25: 1 | F25: 11.2 | G25: týdně | I25: 2 | L25: 1 | M25: 0 | N25: Typová činnost č.: 14 dlažba | O25: 2.8 | Q25: 0.04666666667 | R25: 0 | S25: 0 | T25: =IF(G25="denně",S25*I25*$C$89,IF(G25="týdně",S25*I25*$C$90,IF(G25="měsíčně",S25*I25*$C$91,IF(G25="čtvrtletně",S25*I25*4*$C$92,IF(G25="ročně",S25*I25*$C$92,I25*S25*$C$92)))))*'Základní údaje'!$H$13*IF(M25=1,'Základní údaje'!$C$12,1) -> 0
A26: WC páni (kanceláře) 1x záchod, 2x umyvadlo, 2x pisoar | C26: =2.8*4 -> 11.2 | E26: 1 | F26: 11.2 | G26: týdně | I26: 2 | L26: 1 | M26: 0 | N26: Typová činnost č.: 14 dlažba | O26: 2.8 | Q26: 0.04666666667 | R26: 0 | S26: 0 | T26: =IF(G26="denně",S26*I26*$C$89,IF(G26="týdně",S26*I26*$C$90,IF(G26="měsíčně",S26*I26*$C$91,IF(G26="čtvrtletně",S26*I26*4*$C$92,IF(G26="ročně",S26*I26*$C$92,I26*S26*$C$92)))))*'Základní údaje'!$H$13*IF(M26=1,'Základní údaje'!$C$12,1) -> 0
A27: Schodiště ze SÚZ do xPORT | B27: 1 | C27: 24.54 | E27: 1 | F27: 24.54 | G27: denně | I27: 1 | L27: 1 | M27: 0 | N27: Typová činnost č.: 1 Podlahová krytina: dlažba | O27: 6.135 | Q27: 0.10225 | R27: 0 | S27: 0 | T27: =IF(G27="denně",S27*I27*$C$89,IF(G27="týdně",S27*I27*$C$90,IF(G27="měsíčně",S27*I27*$C$91,IF(G27="čtvrtletně",S27*I27*4*$C$92,IF(G27="ročně",S27*I27*$C$92,I27*S27*$C$92)))))*'Základní údaje'!$H$13*IF(M27=1,'Základní údaje'!$C$12,1) -> 0
A28: vstupní hala xPORT + recepce | B28: 1 | C28: 44.01 | E28: 1 | F28: 44.01 | G28: denně | I28: 1 | L28: 1 | M28: 0 | N28: Typová činnost č.: 1 Podlahová krytina: lino | O28: =25*C28/60 -> 18.3375 | Q28: 0.305625 | R28: 0 | S28: 0 | T28: =IF(G28="denně",S28*I28*$C$89,IF(G28="týdně",S28*I28*$C$90,IF(G28="měsíčně",S28*I28*$C$91,IF(G28="čtvrtletně",S28*I28*4*$C$92,IF(G28="ročně",S28*I28*$C$92,I28*S28*$C$92)))))*'Základní údaje'!$H$13*IF(M28=1,'Základní údaje'!$C$12,1) -> 0
A29: Kuchyňka - 2. NP xPORT | B29: 1 | C29: 71.55 | E29: 1 | F29: 71.55 | G29: denně | I29: 1 | L29: 1 | M29: 0 | N29: Typová činnost č.: 5 Podlahová krytina: lino | O29: =30*C29/60 -> 35.775 | Q29: 0.59625 | R29: 0 | S29: 0 | T29: =IF(G29="denně",S29*I29*$C$89,IF(G29="týdně",S29*I29*$C$90,IF(G29="měsíčně",S29*I29*$C$91,IF(G29="čtvrtletně",S29*I29*4*$C$92,IF(G29="ročně",S29*I29*$C$92,I29*S29*$C$92)))))*'Základní údaje'!$H$13*IF(M29=1,'Základní údaje'!$C$12,1) -> 0
A30: WC - 2. NP xPORT | B30: 1 | C30: 34.25 | E30: 1 | F30: 34.25 | G30: denně | I30: 1 | L30: 1 | M30: 0 | N30: Typová činnost č.: 14 Podlahová krytina: dlažba | O30: =450/60 -> 7.5 | Q30: 0.125 | R30: 0 | S30: 0 | T30: =IF(G30="denně",S30*I30*$C$89,IF(G30="týdně",S30*I30*$C$90,IF(G30="měsíčně",S30*I30*$C$91,IF(G30="čtvrtletně",S30*I30*4*$C$92,IF(G30="ročně",S30*I30*$C$92,I30*S30*$C$92)))))*'Základní údaje'!$H$13*IF(M30=1,'Základní údaje'!$C$12,1) -> 0
A31: Director - 2. NP xPORT | B31: 1 | C31: 14.51 | E31: 1 | F31: 14.51 | G31: denně | I31: 1 | L31: 1 | M31: 0 | N31: Typová činnost č.: 3 Podlahová krytina: koberec | O31: =15*C31/60 -> 3.6275 | Q31: 0.06045833333 | R31: 0 | S31: 0 | T31: =IF(G31="denně",S31*I31*$C$89,IF(G31="týdně",S31*I31*$C$90,IF(G31="měsíčně",S31*I31*$C$91,IF(G31="čtvrtletně",S31*I31*4*$C$92,IF(G31="ročně",S31*I31*$C$92,I31*S31*$C$92)))))*'Základní údaje'!$H$13*IF(M31=1,'Základní údaje'!$C$12,1) -> 0
A32: Chill Out - 2. NP xPORT | B32: 1 | C32: 57.06 | E32: 1 | F32: 57.06 | G32: denně | I32: 1 | L32: 1 | M32: 0 | N32: Typová činnost č.: 3 Podlahová krytina: lino+koberec | O32: 14.265 | Q32: 0.23775 | R32: 0 | S32: 0 | T32: =IF(G32="denně",S32*I32*$C$89,IF(G32="týdně",S32*I32*$C$90,IF(G32="měsíčně",S32*I32*$C$91,IF(G32="čtvrtletně",S32*I32*4*$C$92,IF(G32="ročně",S32*I32*$C$92,I32*S32*$C$92)))))*'Základní údaje'!$H$13*IF(M32=1,'Základní údaje'!$C$12,1) -> 0
A33: Kuchyňka - 3. NP xPORT | B33: 1 | C33: 5.7 | E33: 1 | F33: 5.7 | G33: denně | I33: 1 | L33: 1 | M33: 0 | N33: Typová činnost č.: 5 Podlahová krytina: lino | O33: =30*C33/60 -> 2.85 | Q33: 0.0475 | R33: 0 | S33: 0 | T33: =IF(G33="denně",S33*I33*$C$89,IF(G33="týdně",S33*I33*$C$90,IF(G33="měsíčně",S33*I33*$C$91,IF(G33="čtvrtletně",S33*I33*4*$C$92,IF(G33="ročně",S33*I33*$C$92,I33*S33*$C$92)))))*'Základní údaje'!$H$13*IF(M33=1,'Základní údaje'!$C$12,1) -> 0
A34: Kanceláře - 3. NP xPORT | B34: 1 | C34: =292.67/7 -> 41.81 | E34: 7 | F34: 292.67 | G34: denně | I34: 1 | L34: 1 | M34: 0 | N34: Typová činnost č.: 3 Podlahová krytina: koberec | O34: =15*C34/60 -> 10.4525 | Q34: 1.219458333 | R34: 0 | S34: 0 | T34: =IF(G34="denně",S34*I34*$C$89,IF(G34="týdně",S34*I34*$C$90,IF(G34="měsíčně",S34*I34*$C$91,IF(G34="čtvrtletně",S34*I34*4*$C$92,IF(G34="ročně",S34*I34*$C$92,I34*S34*$C$92)))))*'Základní údaje'!$H$13*IF(M34=1,'Základní údaje'!$C$12,1) -> 0
A35: WC - 3. NP xPORT | B35: 1 | C35: 26.75 | E35: 1 | F35: 26.75 | G35: denně | I35: 1 | L35: 1 | M35: 0 | N35: Typová činnost č.: 14 Podlahová krytina: dlažba | O35: 7.5 | Q35: 0.125 | R35: 0 | S35: 0 | T35: =IF(G35="denně",S35*I35*$C$89,IF(G35="týdně",S35*I35*$C$90,IF(G35="měsíčně",S35*I35*$C$91,IF(G35="čtvrtletně",S35*I35*4*$C$92,IF(G35="ročně",S35*I35*$C$92,I35*S35*$C$92)))))*'Základní údaje'!$H$13*IF(M35=1,'Základní údaje'!$C$12,1) -> 0
A36: Příplatek za silně znečištěné WC xPORT | B36: 1 | D36: 1 | E36: 1 | F36: =C36*E36+D36*E36 -> 1 | G36: měsíčně | I36: 2 | L36: 1 | M36: 0 | N36: Typová činnost č.: 14 (nutno doložit fotodokumentací) | O36: 20 | Q36: =IF(P36=0,O36*E36/60,P36*E36/60) -> 0.3333333333 | R36: =ROUND(IF(P36=0,O36/60*$C$2,P36/60*$C$2),0) -> 0 | S36: =R36*E36 -> 0 | T36: =IF(G36="denně",S36*I36*$C$89,IF(G36="týdně",S36*I36*$C$90,IF(G36="měsíčně",S36*I36*$C$91,IF(G36="čtvrtletně",S36*I36*4*$C$92,IF(G36="ročně",S36*I36*$C$92,I36*S36*$C$92)))))*'Základní údaje'!$H$13*IF(M36=1,'Základní údaje'!$C$12,1) -> 0
A37: Bay Bridge - 2. NP xPORT | B37: 1 | C37: 45.81 | E37: 1 | F37: 45.81 | G37: denně | I37: 1 | L37: 1 | M37: 0 | N37: Typová činnost č.: 3 Podlahová krytina: koberec | O37: =20*C37/60 -> 15.27 | Q37: =IF(P37=0,O37*E37/60,P37*E37/60) -> 0.2545 | R37: =ROUND(IF(P37=0,O37/60*$C$2,P37/60*$C$2),0) -> 0 | S37: =R37*E37 -> 0 | T37: =IF(G37="denně",S37*I37*$C$89,IF(G37="týdně",S37*I37*$C$90,IF(G37="měsíčně",S37*I37*$C$91,IF(G37="čtvrtletně",S37*I37*4*$C$92,IF(G37="ročně",S37*I37*$C$92,I37*S37*$C$92)))))*'Základní údaje'!$H$13*IF(M37=1,'Základní údaje'!$C$12,1) -> 0
A38: San Francisco - 2. NP xPORT | B38: 1 | C38: 62.92 | E38: 1 | F38: 62.92 | G38: denně | I38: 1 | L38: 1 | M38: 0 | N38: Typová činnost č.: 3 Podlahová krytina: koberec | O38: 20.97333333 | Q38: 0.3495555556 | R38: 0 | S38: 0 | T38: =IF(G38="denně",S38*I38*$C$89,IF(G38="týdně",S38*I38*$C$90,IF(G38="měsíčně",S38*I38*$C$91,IF(G38="čtvrtletně",S38*I38*4*$C$92,IF(G38="ročně",S38*I38*$C$92,I38*S38*$C$92)))))*'Základní údaje'!$H$13*IF(M38=1,'Základní údaje'!$C$12,1) -> 0
A39: Recepce včetně meeting rooms - 2. NP xPORT | B39: 1 | C39: 121.19 | E39: 1 | F39: 121.19 | G39: denně | I39: 1 | L39: 1 | M39: 0 | N39: Typová činnost č.: 1 Podlahová krytina: lino | O39: 40.39666667 | Q39: 0.6732777778 | R39: 0 | S39: 0 | T39: =IF(G39="denně",S39*I39*$C$89,IF(G39="týdně",S39*I39*$C$90,IF(G39="měsíčně",S39*I39*$C$91,IF(G39="čtvrtletně",S39*I39*4*$C$92,IF(G39="ročně",S39*I39*$C$92,I39*S39*$C$92)))))*'Základní údaje'!$H$13*IF(M39=1,'Základní údaje'!$C$12,1) -> 0
A40: Open Space - 2. NP xPORT | B40: 1 | C40: 272 | E40: 1 | F40: 272 | G40: denně | I40: 1 | L40: 1 | M40: 0 | N40: Typová činnost č.: 3 Podlahová krytina: koberec | O40: 90.66666667 | Q40: 1.511111111 | R40: 0 | S40: 0 | T40: =IF(G40="denně",S40*I40*$C$89,IF(G40="týdně",S40*I40*$C$90,IF(G40="měsíčně",S40*I40*$C$91,IF(G40="čtvrtletně",S40*I40*4*$C$92,IF(G40="ročně",S40*I40*$C$92,I40*S40*$C$92)))))*'Základní údaje'!$H$13*IF(M40=1,'Základní údaje'!$C$12,1) -> 0
A41: Open Space kancelář - 2. NP xPORT | B41: 1 | C41: 41 | E41: 1 | F41: =C41*E41+D41*E41 -> 41 | G41: denně | I41: 1 | L41: 1 | M41: 0 | N41: Typová činnost č.: 3 Podlahová krytina: koberec | O41: =20*C41/60 -> 13.66666667 | Q41: =IF(P41=0,O41*E41/60,P41*E41/60) -> 0.2277777778 | R41: =ROUND(IF(P41=0,O41/60*$C$2,P41/60*$C$2),0) -> 0 | S41: =R41*E41 -> 0 | T41: =IF(G41="denně",S41*I41*$C$89,IF(G41="týdně",S41*I41*$C$90,IF(G41="měsíčně",S41*I41*$C$91,IF(G41="čtvrtletně",S41*I41*4*$C$92,IF(G41="ročně",S41*I41*$C$92,I41*S41*$C$92)))))*'Základní údaje'!$H$13*IF(M41=1,'Základní údaje'!$C$12,1) -> 0
A42: Lobby - 2. NP xPORT | B42: 1 | C42: 26.46 | E42: 1 | F42: 26.46 | G42: denně | I42: 1 | L42: 1 | M42: 0 | N42: Typová činnost č.: 3 Podlahová krytina: lino | O42: 8.82 | Q42: 0.147 | R42: 0 | S42: 0 | T42: =IF(G42="denně",S42*I42*$C$89,IF(G42="týdně",S42*I42*$C$90,IF(G42="měsíčně",S42*I42*$C$91,IF(G42="čtvrtletně",S42*I42*4*$C$92,IF(G42="ročně",S42*I42*$C$92,I42*S42*$C$92)))))*'Základní údaje'!$H$13*IF(M42=1,'Základní údaje'!$C$12,1) -> 0
A43: Chodba - 2. NP xPORT | B43: 1 | C43: 32.96 | E43: 1 | F43: 32.96 | G43: denně | I43: 1 | L43: 1 | M43: 0 | N43: Typová činnost č.: 1 Podlahová krytina: koberec | O43: =10*C43/60 -> 5.493333333 | Q43: 0.09155555556 | R43: 0 | S43: 0 | T43: =IF(G43="denně",S43*I43*$C$89,IF(G43="týdně",S43*I43*$C$90,IF(G43="měsíčně",S43*I43*$C$91,IF(G43="čtvrtletně",S43*I43*4*$C$92,IF(G43="ročně",S43*I43*$C$92,I43*S43*$C$92)))))*'Základní údaje'!$H$13*IF(M43=1,'Základní údaje'!$C$12,1) -> 0
A44: World Trade Centre - 2. NP xPORT | B44: 1 | C44: 43.63 | E44: 1 | F44: 43.63 | G44: denně | I44: 1 | L44: 1 | M44: 0 | N44: Typová činnost č.: 3 Podlahová krytina: koberec | O44: =20*C44/60 -> 14.54333333 | Q44: 0.2423888889 | R44: 0 | S44: 0 | T44: =IF(G44="denně",S44*I44*$C$89,IF(G44="týdně",S44*I44*$C$90,IF(G44="měsíčně",S44*I44*$C$91,IF(G44="čtvrtletně",S44*I44*4*$C$92,IF(G44="ročně",S44*I44*$C$92,I44*S44*$C$92)))))*'Základní údaje'!$H$13*IF(M44=1,'Základní údaje'!$C$12,1) -> 0
A45: Malé zas. místnosti - 2. NP xPORT | B45: 1 | C45: 49.98 | E45: 1 | F45: 49.98 | G45: denně | I45: 1 | L45: 1 | M45: 0 | N45: Typová činnost č.: 3 Podlahová krytina: koberec | O45: 16.66 | Q45: 0.2776666667 | R45: 0 | S45: 0 | T45: =IF(G45="denně",S45*I45*$C$89,IF(G45="týdně",S45*I45*$C$90,IF(G45="měsíčně",S45*I45*$C$91,IF(G45="čtvrtletně",S45*I45*4*$C$92,IF(G45="ročně",S45*I45*$C$92,I45*S45*$C$92)))))*'Základní údaje'!$H$13*IF(M45=1,'Základní údaje'!$C$12,1) -> 0
A46: Area 51 - 2. NP xPORT | B46: 1 | C46: 25.29 | E46: 1 | F46: 25.29 | G46: denně | I46: 1 | L46: 1 | M46: 0 | N46: Typová činnost č.: 3 Podlahová krytina: koberec | O46: 8.43 | Q46: 0.1405 | R46: 0 | S46: 0 | T46: =IF(G46="denně",S46*I46*$C$89,IF(G46="týdně",S46*I46*$C$90,IF(G46="měsíčně",S46*I46*$C$91,IF(G46="čtvrtletně",S46*I46*4*$C$92,IF(G46="ročně",S46*I46*$C$92,I46*S46*$C$92)))))*'Základní údaje'!$H$13*IF(M46=1,'Základní údaje'!$C$12,1) -> 0
A47: Call rooms - 2. NP xPORT | B47: 1 | C47: 12.68 | E47: 1 | F47: 12.68 | G47: denně | I47: 1 | L47: 1 | M47: 0 | N47: Typová činnost č.: 3 Podlahová krytina: koberec | O47: 4.226666667 | Q47: 0.07044444444 | R47: 0 | S47: 0 | T47: =IF(G47="denně",S47*I47*$C$89,IF(G47="týdně",S47*I47*$C$90,IF(G47="měsíčně",S47*I47*$C$91,IF(G47="čtvrtletně",S47*I47*4*$C$92,IF(G47="ročně",S47*I47*$C$92,I47*S47*$C$92)))))*'Základní údaje'!$H$13*IF(M47=1,'Základní údaje'!$C$12,1) -> 0
A48: Manhattan - 2. NP xPORT | B48: 1 | C48: 27.33 | E48: 1 | F48: =C48*E48+D48*E48 -> 27.33 | G48: denně | I48: 1 | L48: 1 | M48: 0 | N48: Typová činnost č.: 3 Podlahová krytina: koberec | O48: 9.11 | Q48: =IF(P48=0,O48*E48/60,P48*E48/60) -> 0.1518333333 | R48: =ROUND(IF(P48=0,O48/60*$C$2,P48/60*$C$2),0) -> 0 | S48: =R48*E48 -> 0 | T48: =IF(G48="denně",S48*I48*$C$89,IF(G48="týdně",S48*I48*$C$90,IF(G48="měsíčně",S48*I48*$C$91,IF(G48="čtvrtletně",S48*I48*4*$C$92,IF(G48="ročně",S48*I48*$C$92,I48*S48*$C$92)))))*'Základní údaje'!$H$13*IF(M48=1,'Základní údaje'!$C$12,1) -> 0
A49: Chodba - 3. NP xPORT | B49: 1 | C49: 11.65 | E49: 1 | F49: 11.65 | G49: denně | I49: 1 | L49: 1 | M49: 0 | N49: Typová činnost č.: 1 Podlahová krytina: koberec | O49: =10*C49/60 -> 1.941666667 | Q49: 0.03236111111 | R49: 0 | S49: 0 | T49: =IF(G49="denně",S49*I49*$C$89,IF(G49="týdně",S49*I49*$C$90,IF(G49="měsíčně",S49*I49*$C$91,IF(G49="čtvrtletně",S49*I49*4*$C$92,IF(G49="ročně",S49*I49*$C$92,I49*S49*$C$92)))))*'Základní údaje'!$H$13*IF(M49=1,'Základní údaje'!$C$12,1) -> 0
A50: Open Space - 3. NP xPORT | B50: 1 | C50: 119.93 | E50: 1 | F50: 119.93 | G50: denně | I50: 1 | L50: 1 | M50: 0 | N50: Typová činnost č.: 3 Podlahová krytina: koberec | O50: 39.97666667 | Q50: 0.6662777778 | R50: 0 | S50: =R50*E50 -> 0 | T50: =IF(G50="denně",S50*I50*$C$89,IF(G50="týdně",S50*I50*$C$90,IF(G50="měsíčně",S50*I50*$C$91,IF(G50="čtvrtletně",S50*I50*4*$C$92,IF(G50="ročně",S50*I50*$C$92,I50*S50*$C$92)))))*'Základní údaje'!$H$13*IF(M50=1,'Základní údaje'!$C$12,1) -> 0
A51: Schodiště - 3. NP xPORT | B51: 1 | C51: 10.83 | E51: 1 | F51: 10.83 | G51: denně | I51: 1 | L51: 1 | M51: 0 | N51: Typová činnost č.: 1 Podlahová krytina: koberec | O51: =15*C51/60 -> 2.7075 | Q51: 0.045125 | R51: 0 | S51: 0 | T51: =IF(G51="denně",S51*I51*$C$89,IF(G51="týdně",S51*I51*$C$90,IF(G51="měsíčně",S51*I51*$C$91,IF(G51="čtvrtletně",S51*I51*4*$C$92,IF(G51="ročně",S51*I51*$C$92,I51*S51*$C$92)))))*'Základní údaje'!$H$13*IF(M51=1,'Základní údaje'!$C$12,1) -> 0
A52: Schod. ze SÚZ do xPORT - 2. NP xPORT | B52: 1 | C52: 17.83 | E52: 1 | F52: 17.83 | G52: měsíčně | I52: 1 | L52: 1 | M52: 0 | N52: Typová činnost č.: 1 Podlahová krytina: dlažba | O52: =15*C52/60 -> 4.4575 | Q52: 0.07429166667 | R52: 0 | S52: 0 | T52: =IF(G52="denně",S52*I52*$C$89,IF(G52="týdně",S52*I52*$C$90,IF(G52="měsíčně",S52*I52*$C$91,IF(G52="čtvrtletně",S52*I52*4*$C$92,IF(G52="ročně",S52*I52*$C$92,I52*S52*$C$92)))))*'Základní údaje'!$H$13*IF(M52=1,'Základní údaje'!$C$12,1) -> 0
A53: Terasa - 3. NP xPORT | B53: 1 | C53: 60.79 | E53: 1 | F53: 60.79 | G53: měsíčně | I53: 1 | L53: 1 | M53: 0 | N53: Typová činnost č.: 2 Podlahová krytina: plast | O53: =25*C53/60 -> 25.32916667 | Q53: 0.4221527778 | R53: 0 | S53: 0 | T53: =IF(G53="denně",S53*I53*$C$89,IF(G53="týdně",S53*I53*$C$90,IF(G53="měsíčně",S53*I53*$C$91,IF(G53="čtvrtletně",S53*I53*4*$C$92,IF(G53="ročně",S53*I53*$C$92,I53*S53*$C$92)))))*'Základní údaje'!$H$13*IF(M53=1,'Základní údaje'!$C$12,1) -> 0
A54: Mytí vnitřních skleněných ploch xPORT | B54: 1 | C54: ='kanc.+skleň.pl.'!M12 -> 114 | E54: 1 | F54: =C54*E54+D54*E54 -> 114 | G54: měsíčně | I54: 1 | L54: 1 | M54: 0 | N54: Typová činnost č.: 12 | O54: =120*C54/60 -> 228 | Q54: =IF(P54=0,O54*E54/60,P54*E54/60) -> 3.8 | R54: =ROUND(IF(P54=0,O54/60*$C$2,P54/60*$C$2),0) -> 0 | S54: =R54*E54 -> 0 | T54: =IF(G54="denně",S54*I54*$C$89,IF(G54="týdně",S54*I54*$C$90,IF(G54="měsíčně",S54*I54*$C$91,IF(G54="čtvrtletně",S54*I54*4*$C$92,IF(G54="ročně",S54*I54*$C$92,I54*S54*$C$92)))))*'Základní údaje'!$H$13*IF(M54=1,'Základní údaje'!$C$12,1) -> 0
A55: Mytí oken xPORT | B55: 1 | C55: ='kanc.+skleň.pl.'!Q9 -> 219 | E55: 1 | F55: 219 | G55: ročně | I55: 1 | L55: 1 | M55: 0 | N55: Typová činnost č.: 12 | O55: =120*C55/60 -> 438 | Q55: 7.3 | R55: 0 | S55: 0 | T55: =IF(G55="denně",S55*I55*$C$89,IF(G55="týdně",S55*I55*$C$90,IF(G55="měsíčně",S55*I55*$C$91,IF(G55="čtvrtletně",S55*I55*4*$C$92,IF(G55="ročně",S55*I55*$C$92,I55*S55*$C$92)))))*'Základní údaje'!$H$13*IF(M55=1,'Základní údaje'!$C$12,1) -> 0
A56: Předsíň tělocvičny (1.PP) | C56: =2.6*5.5 -> 14.3 | E56: 1 | F56: 14.3 | G56: sezonně | H56: týdně | I56: =TRUNC((K56-J56+1)*IF(H56="denně",5,IF(H56="týdně",1,IF(H56="měsíčně",0.25,IF(H56="čtvrtletně",0.077,1/(K56-J56+1))))),0) -> 17 | J56: 36 | K56: 52 | L56: 1 | M56: 0 | N56: Typová činnost č.: 1 Podlahová krytina: koberec | O56: =15*C56/60 -> 3.575 | Q56: 0.05958333333 | R56: 0 | S56: 0 | T56: =IF(G56="denně",S56*I56*$C$89,IF(G56="týdně",S56*I56*$C$90,IF(G56="měsíčně",S56*I56*$C$91,IF(G56="čtvrtletně",S56*I56*4*$C$92,IF(G56="ročně",S56*I56*$C$92,I56*S56*$C$92)))))*'Základní údaje'!$H$13*IF(M56=1,'Základní údaje'!$C$12,1) -> 0
A57: Předsíň tělocvičny (1.PP) | C57: 14.3 | E57: 1 | F57: 14.3 | G57: sezonně | H57: týdně | I57: =TRUNC((K57-J57+1)*IF(H57="denně",5,IF(H57="týdně",1,IF(H57="měsíčně",0.25,IF(H57="čtvrtletně",0.077,1/(K57-J57+1))))),0) -> 26 | J57: 1 | K57: 26 | L57: 1 | M57: 0 | N57: Typová činnost č.: 1 Podlahová krytina: koberec | O57: 7.5 | Q57: 0.125 | R57: 0 | S57: 0 | T57: =IF(G57="denně",S57*I57*$C$89,IF(G57="týdně",S57*I57*$C$90,IF(G57="měsíčně",S57*I57*$C$91,IF(G57="čtvrtletně",S57*I57*4*$C$92,IF(G57="ročně",S57*I57*$C$92,I57*S57*$C$92)))))*'Základní údaje'!$H$13*IF(M57=1,'Základní údaje'!$C$12,1) -> 0
A58: Chodba před tělocvičnami (1.PP) | C58: =12.3*1.7+9.2*1.8 -> 37.47 | E58: 1 | F58: =C58*E58+D58*E58 -> 37.47 | G58: sezonně | H58: týdně | I58: =TRUNC((K58-J58+1)*IF(H58="denně",5,IF(H58="týdně",1,IF(H58="měsíčně",0.25,IF(H58="čtvrtletně",0.077,1/(K58-J58+1))))),0) -> 17 | J58: 36 | K58: 52 | L58: 1 | M58: 0 | N58: Typová činnost č.: 1 Podlahová krytina: dlažba | O58: =15*C58/60 -> 9.3675 | Q58: =IF(P58=0,O58*E58/60,P58*E58/60) -> 0.156125 | R58: =ROUND(IF(P58=0,O58/60*$C$2,P58/60*$C$2),0) -> 0 | S58: =R58*E58 -> 0 | T58: =IF(G58="denně",S58*I58*$C$89,IF(G58="týdně",S58*I58*$C$90,IF(G58="měsíčně",S58*I58*$C$91,IF(G58="čtvrtletně",S58*I58*4*$C$92,IF(G58="ročně",S58*I58*$C$92,I58*S58*$C$92)))))*'Základní údaje'!$H$13*IF(M58=1,'Základní údaje'!$C$12,1) -> 0
A59: Chodba před tělocvičnami (1.PP) | C59: =12.3*1.7+9.2*1.8 -> 37.47 | E59: 1 | F59: =C59*E59+D59*E59 -> 37.47 | G59: sezonně | H59: týdně | I59: =TRUNC((K59-J59+1)*IF(H59="denně",5,IF(H59="týdně",1,IF(H59="měsíčně",0.25,IF(H59="čtvrtletně",0.077,1/(K59-J59+1))))),0) -> 26 | J59: 1 | K59: 26 | L59: 1 | M59: 0 | N59: Typová činnost č.: 1 Podlahová krytina: dlažba | O59: 7.5 | Q59: 0.125 | R59: 0 | S59: 0 | T59: =IF(G59="denně",S59*I59*$C$89,IF(G59="týdně",S59*I59*$C$90,IF(G59="měsíčně",S59*I59*$C$91,IF(G59="čtvrtletně",S59*I59*4*$C$92,IF(G59="ročně",S59*I59*$C$92,I59*S59*$C$92)))))*'Základní údaje'!$H$13*IF(M59=1,'Základní údaje'!$C$12,1) -> 0
A60: ŠATNA PROFESOŘI - 1.PP (toaleta, sprcha) | C60: =4.1*2 -> 8.2 | E60: 1 | F60: 8.2 | G60: sezonně | H60: denně | I60: 85 | J60: 36 | K60: 52 | L60: 1 | M60: 0 | N60: Typová činnost č.: 3, 14 a 15 Podlahová krytina: dlažba | O60: =20*C60/60 -> 2.733333333 | Q60: 0.04555555556 | R60: 0 | S60: 0 | T60: =IF(G60="denně",S60*I60*$C$89,IF(G60="týdně",S60*I60*$C$90,IF(G60="měsíčně",S60*I60*$C$91,IF(G60="čtvrtletně",S60*I60*4*$C$92,IF(G60="ročně",S60*I60*$C$92,I60*S60*$C$92)))))*'Základní údaje'!$H$13*IF(M60=1,'Základní údaje'!$C$12,1) -> 0
A61: ŠATNA PROFESOŘI - 1.PP (toaleta, sprcha) | C61: =4.1*2 -> 8.2 | E61: 1 | F61: 8.2 | G61: sezonně | H61: denně | I61: 130 | J61: 1 | K61: 26 | L61: 1 | M61: 0 | N61: Typová činnost č.: 3, 14 a 15 Podlahová krytina: dlažba | O61: =100*C61/60 -> 13.66666667 | Q61: 0.2277777778 | R61: 0 | S61: 0 | T61: =IF(G61="denně",S61*I61*$C$89,IF(G61="týdně",S61*I61*$C$90,IF(G61="měsíčně",S61*I61*$C$91,IF(G61="čtvrtletně",S61*I61*4*$C$92,IF(G61="ročně",S61*I61*$C$92,I61*S61*$C$92)))))*'Základní údaje'!$H$13*IF(M61=1,'Základní údaje'!$C$12,1) -> 0
A62: ŠATNA muži - 1.PP (2x spch.kout, 2x toalety, 2x pisoar) | C62: =6*2.3+2.3*4.2 -> 23.46 | E62: 1 | F62: =C62*E62+D62*E62 -> 23.46 | G62: sezonně | H62: denně | I62: 85 | J62: 36 | K62: 52 | L62: 1 | M62: 0 | N62: Typová činnost č.: 3, 14 a 15 Podlahová krytina: dlažba | O62: =20*C62/60 -> 7.82 | Q62: =IF(P62=0,O62*E62/60,P62*E62/60) -> 0.1303333333 | R62: =ROUND(IF(P62=0,O62/60*$C$2,P62/60*$C$2),0) -> 0 | S62: =R62*E62 -> 0 | T62: =IF(G62="denně",S62*I62*$C$89,IF(G62="týdně",S62*I62*$C$90,IF(G62="měsíčně",S62*I62*$C$91,IF(G62="čtvrtletně",S62*I62*4*$C$92,IF(G62="ročně",S62*I62*$C$92,I62*S62*$C$92)))))*'Základní údaje'!$H$13*IF(M62=1,'Základní údaje'!$C$12,1) -> 0
A63: ŠATNA muži - 1.PP (2x spch.kout, 2x toalety, 2x pisoar) | C63: =6*2.3+2.3*4.2 -> 23.46 | E63: 1 | F63: =C63*E63+D63*E63 -> 23.46 | G63: sezonně | H63: denně | I63: 130 | J63: 1 | K63: 26 | L63: 1 | M63: 0 | N63: Typová činnost č.: 3, 14 a 15 Podlahová krytina: dlažba | O63: 7.5 | Q63: =IF(P63=0,O63*E63/60,P63*E63/60) -> 0.125 | R63: =ROUND(IF(P63=0,O63/60*$C$2,P63/60*$C$2),0) -> 0 | S63: =R63*E63 -> 0 | T63: =IF(G63="denně",S63*I63*$C$89,IF(G63="týdně",S63*I63*$C$90,IF(G63="měsíčně",S63*I63*$C$91,IF(G63="čtvrtletně",S63*I63*4*$C$92,IF(G63="ročně",S63*I63*$C$92,I63*S63*$C$92)))))*'Základní údaje'!$H$13*IF(M63=1,'Základní údaje'!$C$12,1) -> 0
A64: ŠATNA ženy - 1.PP (2x spch.kout, 2x toalety) | C64: =6*2.3+2.3*4.2 -> 23.46 | E64: 1 | F64: =C64*E64+D64*E64 -> 23.46 | G64: sezonně | H64: denně | I64: 85 | J64: 36 | K64: 52 | L64: 1 | M64: 0 | N64: Typová činnost č.: 3, 14 a 15 Podlahová krytina: dlažba | O64: =20*C64/60 -> 7.82 | Q64: =IF(P64=0,O64*E64/60,P64*E64/60) -> 0.1303333333 | R64: =ROUND(IF(P64=0,O64/60*$C$2,P64/60*$C$2),0) -> 0 | S64: =R64*E64 -> 0 | T64: =IF(G64="denně",S64*I64*$C$89,IF(G64="týdně",S64*I64*$C$90,IF(G64="měsíčně",S64*I64*$C$91,IF(G64="čtvrtletně",S64*I64*4*$C$92,IF(G64="ročně",S64*I64*$C$92,I64*S64*$C$92)))))*'Základní údaje'!$H$13*IF(M64=1,'Základní údaje'!$C$12,1) -> 0
A65: ŠATNA ženy - 1.PP (2x spch.kout, 2x toalety) | C65: =6*2.3+2.3*4.2 -> 23.46 | E65: 1 | F65: =C65*E65+D65*E65 -> 23.46 | G65: sezonně | H65: denně | I65: 130 | J65: 1 | K65: 26 | L65: 1 | M65: 0 | N65: Typová činnost č.: 3, 14 a 15 Podlahová krytina: dlažba | O65: =100*C65/60 -> 39.1 | Q65: =IF(P65=0,O65*E65/60,P65*E65/60) -> 0.6516666667 | R65: =ROUND(IF(P65=0,O65/60*$C$2,P65/60*$C$2),0) -> 0 | S65: =R65*E65 -> 0 | T65: =IF(G65="denně",S65*I65*$C$89,IF(G65="týdně",S65*I65*$C$90,IF(G65="měsíčně",S65*I65*$C$91,IF(G65="čtvrtletně",S65*I65*4*$C$92,IF(G65="ročně",S65*I65*$C$92,I65*S65*$C$92)))))*'Základní údaje'!$H$13*IF(M65=1,'Základní údaje'!$C$12,1) -> 0
A66: CVIČEBNÍ SÁL A - 1.PP | C66: =8.6*6.2 -> 53.32 | E66: 1 | F66: =C66*E66+D66*E66 -> 53.32 | G66: sezonně | H66: týdně | I66: 17 | J66: 36 | K66: 52 | L66: 1 | M66: 0 | N66: Typová činnost č.: 3 Podlahová krytina: žiněnky | O66: =20*C66/60 -> 17.77333333 | Q66: =IF(P66=0,O66*E66/60,P66*E66/60) -> 0.2962222222 | R66: =ROUND(IF(P66=0,O66/60*$C$2,P66/60*$C$2),0) -> 0 | S66: =R66*E66 -> 0 | T66: =IF(G66="denně",S66*I66*$C$89,IF(G66="týdně",S66*I66*$C$90,IF(G66="měsíčně",S66*I66*$C$91,IF(G66="čtvrtletně",S66*I66*4*$C$92,IF(G66="ročně",S66*I66*$C$92,I66*S66*$C$92)))))*'Základní údaje'!$H$13*IF(M66=1,'Základní údaje'!$C$12,1) -> 0
A67: CVIČEBNÍ SÁL A - 1.PP | C67: =8.6*6.2 -> 53.32 | E67: 1 | F67: 53.32 | G67: sezonně | H67: týdně | I67: 26 | J67: 1 | K67: 26 | L67: 1 | M67: 0 | N67: Typová činnost č.: 3 Podlahová krytina: žiněnky | O67: 17.77333333 | Q67: 0.2962222222 | R67: 0 | S67: 0 | T67: =IF(G67="denně",S67*I67*$C$89,IF(G67="týdně",S67*I67*$C$90,IF(G67="měsíčně",S67*I67*$C$91,IF(G67="čtvrtletně",S67*I67*4*$C$92,IF(G67="ročně",S67*I67*$C$92,I67*S67*$C$92)))))*'Základní údaje'!$H$13*IF(M67=1,'Základní údaje'!$C$12,1) -> 0
A68: CVIČEBNÍ SÁL B - 1.PP | C68: =17.2*6 -> 103.2 | E68: 1 | F68: =C68*E68+D68*E68 -> 103.2 | G68: sezonně | H68: týdně | I68: 17 | J68: 36 | K68: 52 | L68: 1 | M68: 0 | N68: Typová činnost č.: 3 Podlahová krytina: žiněnky | O68: 34.4 | Q68: =IF(P68=0,O68*E68/60,P68*E68/60) -> 0.5733333333 | R68: =ROUND(IF(P68=0,O68/60*$C$2,P68/60*$C$2),0) -> 0 | S68: =R68*E68 -> 0 | T68: =IF(G68="denně",S68*I68*$C$89,IF(G68="týdně",S68*I68*$C$90,IF(G68="měsíčně",S68*I68*$C$91,IF(G68="čtvrtletně",S68*I68*4*$C$92,IF(G68="ročně",S68*I68*$C$92,I68*S68*$C$92)))))*'Základní údaje'!$H$13*IF(M68=1,'Základní údaje'!$C$12,1) -> 0
A69: CVIČEBNÍ SÁL B - 1.PP | C69: 103.2 | E69: 1 | F69: =C69*E69+D69*E69 -> 103.2 | G69: sezonně | H69: týdně | I69: 26 | J69: 1 | K69: 26 | L69: 1 | M69: 0 | N69: Typová činnost č.: 3 Podlahová krytina: žiněnky | O69: 34.4 | Q69: =IF(P69=0,O69*E69/60,P69*E69/60) -> 0.5733333333 | R69: =ROUND(IF(P69=0,O69/60*$C$2,P69/60*$C$2),0) -> 0 | S69: =R69*E69 -> 0 | T69: =IF(G69="denně",S69*I69*$C$89,IF(G69="týdně",S69*I69*$C$90,IF(G69="měsíčně",S69*I69*$C$91,IF(G69="čtvrtletně",S69*I69*4*$C$92,IF(G69="ročně",S69*I69*$C$92,I69*S69*$C$92)))))*'Základní údaje'!$H$13*IF(M69=1,'Základní údaje'!$C$12,1) -> 0
A70: NÁŘAĎOVNA - 1.PP | C70: 6.7 | E70: 1 | F70: =C70*E70+D70*E70 -> 6.7 | G70: sezonně | H70: měsíčně | I70: =TRUNC((K70-J70+1)*IF(H70="denně",5,IF(H70="týdně",1,IF(H70="měsíčně",0.25,IF(H70="čtvrtletně",0.077,1/(K70-J70+1))))),0) -> 4 | J70: 36 | K70: 52 | L70: 1 | M70: 0 | N70: Typová činnost č.: 3 Podlahová krytina: dlažba | O70: 2.233333333 | Q70: =IF(P70=0,O70*E70/60,P70*E70/60) -> 0.03722222222 | R70: =ROUND(IF(P70=0,O70/60*$C$2,P70/60*$C$2),0) -> 0 | S70: =R70*E70 -> 0 | T70: =IF(G70="denně",S70*I70*$C$89,IF(G70="týdně",S70*I70*$C$90,IF(G70="měsíčně",S70*I70*$C$91,IF(G70="čtvrtletně",S70*I70*4*$C$92,IF(G70="ročně",S70*I70*$C$92,I70*S70*$C$92)))))*'Základní údaje'!$H$13*IF(M70=1,'Základní údaje'!$C$12,1) -> 0
A71: NÁŘAĎOVNA - 1.PP | C71: 6.7 | E71: 1 | F71: =C71*E71+D71*E71 -> 6.7 | G71: sezonně | H71: měsíčně | I71: 6 | J71: 1 | K71: 27 | L71: 1 | M71: 0 | N71: Typová činnost č.: 3 Podlahová krytina: dlažba | O71: 2.233333333 | Q71: =IF(P71=0,O71*E71/60,P71*E71/60) -> 0.03722222222 | R71: =ROUND(IF(P71=0,O71/60*$C$2,P71/60*$C$2),0) -> 0 | S71: =R71*E71 -> 0 | T71: =IF(G71="denně",S71*I71*$C$89,IF(G71="týdně",S71*I71*$C$90,IF(G71="měsíčně",S71*I71*$C$91,IF(G71="čtvrtletně",S71*I71*4*$C$92,IF(G71="ročně",S71*I71*$C$92,I71*S71*$C$92)))))*'Základní údaje'!$H$13*IF(M71=1,'Základní údaje'!$C$12,1) -> 0
A72: chodba, sport. areál | C72: =17.5+2.2+2.1*2.3 -> 24.53 | E72: 1 | F72: =C72*E72+D72*E72 -> 24.53 | G72: sezonně | H72: denně | I72: 85 | J72: 36 | K72: 52 | L72: 1 | M72: 0 | N72: Typová činnost č.: 3 Podlahová krytina: dlažba | O72: =20*C72/60 -> 8.176666667 | Q72: =IF(P72=0,O72*E72/60,P72*E72/60) -> 0.1362777778 | R72: =ROUND(IF(P72=0,O72/60*$C$2,P72/60*$C$2),0) -> 0 | S72: =R72*E72 -> 0 | T72: =IF(G72="denně",S72*I72*$C$89,IF(G72="týdně",S72*I72*$C$90,IF(G72="měsíčně",S72*I72*$C$91,IF(G72="čtvrtletně",S72*I72*4*$C$92,IF(G72="ročně",S72*I72*$C$92,I72*S72*$C$92)))))*'Základní údaje'!$H$13*IF(M72=1,'Základní údaje'!$C$12,1) -> 0
A73: chodba, sport. areál | C73: 24.53 | E73: 1 | F73: 24.53 | G73: sezonně | H73: denně | I73: 135 | J73: 1 | K73: 27 | L73: 1 | M73: 0 | N73: Typová činnost č.: 1 Podlahová krytina: dlažba | O73: =10*C73/60 -> 4.088333333 | Q73: 0.06813888889 | R73: 0 | S73: =R73*E73 -> 0 | T73: =IF(G73="denně",S73*I73*$C$89,IF(G73="týdně",S73*I73*$C$90,IF(G73="měsíčně",S73*I73*$C$91,IF(G73="čtvrtletně",S73*I73*4*$C$92,IF(G73="ročně",S73*I73*$C$92,I73*S73*$C$92)))))*'Základní údaje'!$H$13*IF(M73=1,'Základní údaje'!$C$12,1) -> 0
A74: šatna profesoři, sport. areál (toalety, sprchy) | C74: =2.4*4+2.4*2.7 -> 16.08 | E74: 1 | F74: 16.08 | G74: sezonně | H74: denně | I74: 85 | J74: 36 | K74: 52 | L74: 1 | M74: 0 | N74: Typová činnost č.: 14 + 15 Podlahová krytina: dlažba | O74: =100*C74/60 -> 26.8 | Q74: 0.4466666667 | R74: 0 | S74: 0 | T74: =IF(G74="denně",S74*I74*$C$89,IF(G74="týdně",S74*I74*$C$90,IF(G74="měsíčně",S74*I74*$C$91,IF(G74="čtvrtletně",S74*I74*4*$C$92,IF(G74="ročně",S74*I74*$C$92,I74*S74*$C$92)))))*'Základní údaje'!$H$13*IF(M74=1,'Základní údaje'!$C$12,1) -> 0
A75: šatna profesoři, sport. areál (toalety, sprchy) | C75: 16.08 | E75: 1 | F75: =C75*E75+D75*E75 -> 16.08 | G75: sezonně | H75: denně | I75: 135 | J75: 1 | K75: 27 | L75: 1 | M75: 0 | N75: Typová činnost č.: 3, 14 a 15 Podlahová krytina: dlažba | O75: =20*C75/60 -> 5.36 | Q75: =IF(P75=0,O75*E75/60,P75*E75/60) -> 0.08933333333 | R75: =ROUND(IF(P75=0,O75/60*$C$2,P75/60*$C$2),0) -> 0 | S75: =R75*E75 -> 0 | T75: =IF(G75="denně",S75*I75*$C$89,IF(G75="týdně",S75*I75*$C$90,IF(G75="měsíčně",S75*I75*$C$91,IF(G75="čtvrtletně",S75*I75*4*$C$92,IF(G75="ročně",S75*I75*$C$92,I75*S75*$C$92)))))*'Základní údaje'!$H$13*IF(M75=1,'Základní údaje'!$C$12,1) -> 0
A76: šatna ženy, sport.areál (3x toaleta, 4x sprcha) | C76: =6*3.7+2.8*3.1+2.2*4 -> 39.68 | E76: 1 | F76: =C76*E76+D76*E76 -> 39.68 | G76: sezonně | H76: denně | I76: 85 | J76: 36 | K76: 52 | L76: 1 | M76: 0 | N76: Typová činnost č.: 3, 14 a 15 Podlahová krytina: dlažba | O76: =10*C76/60 -> 6.613333333 | Q76: =IF(P76=0,O76*E76/60,P76*E76/60) -> 0.1102222222 | R76: =ROUND(IF(P76=0,O76/60*$C$2,P76/60*$C$2),0) -> 0 | S76: =R76*E76 -> 0 | T76: =IF(G76="denně",S76*I76*$C$89,IF(G76="týdně",S76*I76*$C$90,IF(G76="měsíčně",S76*I76*$C$91,IF(G76="čtvrtletně",S76*I76*4*$C$92,IF(G76="ročně",S76*I76*$C$92,I76*S76*$C$92)))))*'Základní údaje'!$H$13*IF(M76=1,'Základní údaje'!$C$12,1) -> 0
A77: šatna ženy, sport.areál (3x toaleta, 4x sprcha) | C77: =6*3.7+2.8*3.1+2.2*4 -> 39.68 | E77: 1 | F77: =C77*E77+D77*E77 -> 39.68 | G77: sezonně | H77: denně | I77: 135 | J77: 1 | K77: 27 | L77: 1 | M77: 0 | N77: Typová činnost č.: 3, 14 a 15 Podlahová krytina: dlažba | O77: =100*C77/60 -> 66.13333333 | Q77: =IF(P77=0,O77*E77/60,P77*E77/60) -> 1.102222222 | R77: =ROUND(IF(P77=0,O77/60*$C$2,P77/60*$C$2),0) -> 0 | S77: =R77*E77 -> 0 | T77: =IF(G77="denně",S77*I77*$C$89,IF(G77="týdně",S77*I77*$C$90,IF(G77="měsíčně",S77*I77*$C$91,IF(G77="čtvrtletně",S77*I77*4*$C$92,IF(G77="ročně",S77*I77*$C$92,I77*S77*$C$92)))))*'Základní údaje'!$H$13*IF(M77=1,'Základní údaje'!$C$12,1) -> 0
A78: šatna muži, sport.areál (3x pisoar, 2x toaleta, 4x sprcha) | C78: =6*3.1+2.9*3+2.2*4 -> 36.1 | E78: 1 | F78: =C78*E78+D78*E78 -> 36.1 | G78: sezonně | H78: denně | I78: 85 | J78: 36 | K78: 52 | L78: 1 | M78: 0 | N78: Typová činnost č.: 3, 14 a 15 Podlahová krytina: dlažba | O78: =20*C78/60 -> 12.03333333 | Q78: =IF(P78=0,O78*E78/60,P78*E78/60) -> 0.2005555556 | R78: =ROUND(IF(P78=0,O78/60*$C$2,P78/60*$C$2),0) -> 0 | S78: =R78*E78 -> 0 | T78: =IF(G78="denně",S78*I78*$C$89,IF(G78="týdně",S78*I78*$C$90,IF(G78="měsíčně",S78*I78*$C$91,IF(G78="čtvrtletně",S78*I78*4*$C$92,IF(G78="ročně",S78*I78*$C$92,I78*S78*$C$92)))))*'Základní údaje'!$H$13*IF(M78=1,'Základní údaje'!$C$12,1) -> 0
A79: šatna muži, sport.areál (3x pisoar, 2x toaleta, 4x sprcha) | C79: =6*3.1+2.9*3+2.2*4 -> 36.1 | E79: 1 | F79: =C79*E79+D79*E79 -> 36.1 | G79: sezonně | H79: denně | I79: 135 | J79: 1 | K79: 27 | L79: 1 | M79: 0 | N79: Typová činnost č.: 3, 14 a 15 Podlahová krytina: dlažba | O79: 12.03333333 | Q79: =IF(P79=0,O79*E79/60,P79*E79/60) -> 0.2005555556 | R79: =ROUND(IF(P79=0,O79/60*$C$2,P79/60*$C$2),0) -> 0 | S79: =R79*E79 -> 0 | T79: =IF(G79="denně",S79*I79*$C$89,IF(G79="týdně",S79*I79*$C$90,IF(G79="měsíčně",S79*I79*$C$91,IF(G79="čtvrtletně",S79*I79*4*$C$92,IF(G79="ročně",S79*I79*$C$92,I79*S79*$C$92)))))*'Základní údaje'!$H$13*IF(M79=1,'Základní údaje'!$C$12,1) -> 0
A80: Mytí oken v kancelářích | C80: ='kanc.+skleň.pl.'!J9 -> 372 | E80: 1 | F80: 372 | G80: ročně | I80: 1 | L80: 1 | M80: 0 | N80: Typová činnost č. 12 | O80: =(240*C80)/60 -> 1488 | Q80: 24.8 | R80: 0 | S80: 0 | T80: =IF(G80="denně",S80*I80*$C$89,IF(G80="týdně",S80*I80*$C$90,IF(G80="měsíčně",S80*I80*$C$91,IF(G80="čtvrtletně",S80*I80*4*$C$92,IF(G80="ročně",S80*I80*$C$92,I80*S80*$C$92)))))*'Základní údaje'!$H$13*IF(M80=1,'Základní údaje'!$C$12,1) -> 0
E81: 1 | F81: 0 | I81: 1 | L81: 1 | M81: 0 | Q81: 0 | R81: 0 | S81: 0 | T81: =IF(G81="denně",S81*I81*$C$89,IF(G81="týdně",S81*I81*$C$90,IF(G81="měsíčně",S81*I81*$C$91,IF(G81="čtvrtletně",S81*I81*4*$C$92,IF(G81="ročně",S81*I81*$C$92,I81*S81*$C$92)))))*'Základní údaje'!$H$13*IF(M81=1,'Základní údaje'!$C$12,1) -> 0
F82: 0 | I82: 1 | L82: 1 | M82: 0 | Q82: 0 | R82: 0 | S82: 0 | T82: =IF(G82="denně",S82*I82*$C$89,IF(G82="týdně",S82*I82*$C$90,IF(G82="měsíčně",S82*I82*$C$91,IF(G82="čtvrtletně",S82*I82*4*$C$92,IF(G82="ročně",S82*I82*$C$92,I82*S82*$C$92)))))*'Základní údaje'!$H$13*IF(M82=1,'Základní údaje'!$C$12,1) -> 0
F83: 0 | I83: 1 | L83: 1 | M83: 0 | Q83: 0 | R83: 0 | S83: 0 | T83: =IF(G83="denně",S83*I83*$C$89,IF(G83="týdně",S83*I83*$C$90,IF(G83="měsíčně",S83*I83*$C$91,IF(G83="čtvrtletně",S83*I83*4*$C$92,IF(G83="ročně",S83*I83*$C$92,I83*S83*$C$92)))))*'Základní údaje'!$H$13*IF(M83=1,'Základní údaje'!$C$12,1) -> 0
F84: =C84*E84+D84*E84 -> 0 | I84: 1 | Q84: =IF(P84=0,O84*E84/60,P84*E84/60) -> 0 | R84: =ROUND(IF(P84=0,O84/60*$C$2,P84/60*$C$2),0) -> 0 | S84: =R84*E84 -> 0 | T84: =IF(G84="denně",S84*I84*$C$89,IF(G84="týdně",S84*I84*$C$90,IF(G84="měsíčně",S84*I84*$C$91,IF(G84="čtvrtletně",S84*I84*4*$C$92,IF(G84="ročně",S84*I84*$C$92,I84*S84*$C$92)))))*'Základní údaje'!$H$13*IF(M84=1,'Základní údaje'!$C$12,1) -> 0
F85: 0 | I85: 1 | Q85: 0 | R85: 0 | S85: 0 | T85: =IF(G85="denně",S85*I85*$C$89,IF(G85="týdně",S85*I85*$C$90,IF(G85="měsíčně",S85*I85*$C$91,IF(G85="čtvrtletně",S85*I85*4*$C$92,IF(G85="ročně",S85*I85*$C$92,I85*S85*$C$92)))))*'Základní údaje'!$H$13*IF(M85=1,'Základní údaje'!$C$12,1) -> 0
F86: =C86*E86+D86*E86 -> 0 | I86: 1 | Q86: =IF(P86=0,O86*E86/60,P86*E86/60) -> 0 | R86: =ROUND(IF(P86=0,O86/60*$C$2,P86/60*$C$2),0) -> 0 | S86: =R86*E86 -> 0 | T86: =IF(G86="denně",S86*I86*$C$89,IF(G86="týdně",S86*I86*$C$90,IF(G86="měsíčně",S86*I86*$C$91,IF(G86="čtvrtletně",S86*I86*4*$C$92,IF(G86="ročně",S86*I86*$C$92,I86*S86*$C$92)))))*'Základní údaje'!$H$13*IF(M86=1,'Základní údaje'!$C$12,1) -> 0
A87: Plocha celkem | C87: =SUMPRODUCT(C6:C86,E6:E86) -> 3872.08 | D87: [m²]
A88: Počet kusů celkem | C88: =SUMPRODUCT(D6:D44,E6:E44) -> 18 | D88: [-]
A89: Počet pracovních dnů úklidu: | C89: =NETWORKDAYS($D$1,$E$1,$A$99:$A$165) -> 1027 | N89: =NETWORKDAYS(L89,M89,L90) -> 0
A90: Počet týdnů úklidu: | C90: =C92*52 -> 208
A91: Počet měsíců úklidu: | C91: =C92*12 -> 48
A92: Počet let úklidu | C92: =YEAR(E1)-YEAR(D1) -> 4
A93: CENA CELKEM: | C93: =ROUND(SUM(T6:T86),0) -> 0 | F93: [Kč]
A98: svátky: | C98: četnost úklidu | D98: označení | E98: období úklidu | I98: Kritéria
A99: 2019-01-01 | C99: denně | D99: 0 | E99: 1. Q | I99: =$G$3 -> uklízí se
A100: 2019-04-19 | C100: týdně | D100: 1 | E100: 2. Q | I100: =C99 -> denně
A101: 2019-04-22 | C101: měsíčně | E101: 3. Q
A102: 2019-05-01 | C102: čtvrtletně | E102: 4. Q | I102: =$G$3 -> uklízí se
A103: 2019-05-08 | C103: ročně | E103: leden | I103: =C100 -> týdně
A104: 2019-07-05 | C104: sezonně | E104: únor
A105: 2019-10-28 | E105: březen | I105: =$G$3 -> uklízí se
A106: 2019-12-24 | E106: duben | I106: =C101 -> měsíčně
A107: 2019-12-25 | E107: květen
A108: 2019-12-26 | E108: červen | I108: =$G$3 -> uklízí se
A109: 2020-01-01 | E109: červenec | I109: =C102 -> čtvrtletně
A110: 2020-04-10 | E110: srpen
A111: 2020-04-13 | E111: září | I111: =$G$3 -> uklízí se
A112: 2020-05-01 | E112: říjen | I112: =C103 -> ročně
A113: 2020-05-08 | E113: listopad
A114: 2020-07-06 | E114: prosinec
A115: 2020-09-28
A116: 2020-10-28
A117: 2020-11-17
A118: 2020-12-24
A119: 2020-12-25
A120: 2021-01-01
A121: 2021-04-02
A122: 2021-04-05
A123: 2021-07-05
A124: 2021-07-06
A125: 2021-09-28
A126: 2021-10-28
A127: 2021-11-17
A128: 2021-12-24
A129: 2022-04-15
A130: 2022-04-18
A131: 2022-07-05
A132: 2022-07-06
A133: 2022-09-28
A134: 2022-10-28
A135: 2022-11-17
A136: 2022-12-26
A137: 2023-04-07
A138: 2023-04-10
A139: 2023-05-01
A140: 2023-05-08
A141: 2023-07-05
A142: 2023-07-06
A143: 2023-09-28
A144: 2023-11-17
A145: 2023-12-25
A146: 2023-12-26
A147: 2024-01-01
A148: 2024-03-29
A149: 2024-04-01
A150: 2024-05-01
A151: 2024-05-08
A152: 2024-07-05
A153: 2024-10-28
A154: 2024-12-24
A155: 2024-12-26
A156: 2024-12-26
A157: 2025-01-01
A158: 2025-04-18
A159: 2025-04-21
A160: 2025-10-28
A161: 2025-11-17
A162: 2025-12-24
A163: 2025-12-25
A164: 2025-12-26

Sheet Karty úklidu
A1: V komentáři jsou zkratky pro tisk
A2: Karta úklidu | D2: Centrum kolejí Jarov | E2: týden: | F2: =WEEKNUM(B3,1) -> 45
A3: DENNÍ ÚKLID DNE: | B3: =NOW() -> 2023-11-07T15:38:08 | I3: sezonnost
A4: ='Rozpis úklidu'!$A$3 -> Úklidová jednotka | B4: ='Rozpis úklidu'!$E$3 -> počet úklidových jednotek | C4: Doba úklidu [hod.] | D4: ='Rozpis úklidu'!$N$3 -> Popis činnosti | E4: ='Rozpis úklidu'!$S$3 -> cena celkem za všechny úklidové jednotky (prac. dny) [Kč] | F4: Správně uklizené jednotky | G4: Smluvní pokuta [Kč] | H4: Poznámka
A5: ='Rozpis úklidu'!A4 -> Vstupní schodiště venkovní-podesta | B5: ='Rozpis úklidu'!E4 -> 1 | C5: =IF('Rozpis úklidu'!P4=0,'Rozpis úklidu'!O4*B5/60,'Rozpis úklidu'!P4*B5/60) -> 0.08333333333 | D5: ='Rozpis úklidu'!N4 -> Typová činnost č.: 1 dlažba + čistič bot | E5: ='Rozpis úklidu'!R4*F5 -> 0 | F5: =B5 -> 1 | G5: =IF(F5<B5,(B5-F5)*('Rozpis úklidu'!R4)*2,0) -> 0
A6: ='Rozpis úklidu'!A5 -> Vstupní schodiště venkovní-schody | B6: ='Rozpis úklidu'!E5 -> 1 | C6: =IF('Rozpis úklidu'!P5=0,'Rozpis úklidu'!O5*B6/60,'Rozpis úklidu'!P5*B6/60) -> 0.08333333333 | D6: ='Rozpis úklidu'!N5 -> Typová činnost č.: 1 dlažba | E6: ='Rozpis úklidu'!R5*F6 -> 0 | F6: =B6 -> 1 | G6: =IF(F6<B6,(B6-F6)*('Rozpis úklidu'!R5)*2,0) -> 0
A7: ='Rozpis úklidu'!A6 -> Zádveří - 1. NP | B7: ='Rozpis úklidu'!E6 -> 1 | C7: =IF('Rozpis úklidu'!P6=0,'Rozpis úklidu'!O6*B7/60,'Rozpis úklidu'!P6*B7/60) -> 0.08333333333 | D7: ='Rozpis úklidu'!N6 -> Typová činnost č.: 1 dlažba + zátěžový koberec | E7: ='Rozpis úklidu'!R6*F7 -> 0 | F7: 1 | G7: =IF(F7<B7,(B7-F7)*('Rozpis úklidu'!R6)*2,0) -> 0
A8: ='Rozpis úklidu'!A7 -> VSTUPNÍ HALA - 1. NP | B8: ='Rozpis úklidu'!E7 -> 1 | C8: =IF('Rozpis úklidu'!P7=0,'Rozpis úklidu'!O7*B8/60,'Rozpis úklidu'!P7*B8/60) -> 0.7698611111 | D8: ='Rozpis úklidu'!N7 -> Typová činnost č.: 1 dlažba + 6 m2 zátěžový koberec | E8: ='Rozpis úklidu'!R7*F8 -> 0 | F8: 1 | G8: =IF(F8<B8,(B8-F8)*('Rozpis úklidu'!R7)*2,0) -> 0
A9: ='Rozpis úklidu'!A8 -> WC - 1. NP vestibul páni 2x kabinka, 3x pisoár, 2x umyvadlo | B9: ='Rozpis úklidu'!E8 -> 1 | C9: =IF('Rozpis úklidu'!P8=0,'Rozpis úklidu'!O8*B9/60,'Rozpis úklidu'!P8*B9/60) -> 0.1333333333 | D9: ='Rozpis úklidu'!N8 -> Typová činnost č.: 14 dlažba | E9: ='Rozpis úklidu'!R8*F9 -> 0 | F9: 1 | G9: =IF(F9<B9,(B9-F9)*('Rozpis úklidu'!R8)*2,0) -> 0
A10: ='Rozpis úklidu'!A9 -> WC - 1. NP vestibul dámy 3x kabinka, 2x umyvadlo | B10: ='Rozpis úklidu'!E9 -> 1 | C10: =IF('Rozpis úklidu'!P9=0,'Rozpis úklidu'!O9*B10/60,'Rozpis úklidu'!P9*B10/60) -> 0.1333333333 | D10: ='Rozpis úklidu'!N9 -> Typová činnost č.: 14 dlažba | E10: ='Rozpis úklidu'!R9*F10 -> 0 | F10: 1 | G10: =IF(F10<B10,(B10-F10)*('Rozpis úklidu'!R9)*2,0) -> 0
A11: ='Rozpis úklidu'!A16 -> KANCELÁŘE - 1. NP 15x (viz list "Kanceláře") | B11: ='Rozpis úklidu'!E16 -> 15 | C11: =IF('Rozpis úklidu'!P16=0,'Rozpis úklidu'!O16*B11/60,'Rozpis úklidu'!P16*B11/60) -> 0.375 | D11: ='Rozpis úklidu'!N16 -> Typová činnost č.: 3. a | E11: ='Rozpis úklidu'!R16*F11 -> 0 | F11: =B11 -> 15 | G11: =IF(F11<B11,(B11-F11)*('Rozpis úklidu'!R16)*2,0) -> 0
A12: ='Rozpis úklidu'!A20 -> Kuchyňka u kanceláří | B12: ='Rozpis úklidu'!E20 -> 1 | C12: =IF('Rozpis úklidu'!P20=0,'Rozpis úklidu'!O20*B12/60,'Rozpis úklidu'!P20*B12/60) -> 0.02175 | D12: ='Rozpis úklidu'!N20 -> Typová činnost č.: 5 dlažba | E12: ='Rozpis úklidu'!R20*F12 -> 0 | F12: =B12 -> 1 | G12: =IF(F12<B12,(B12-F12)*('Rozpis úklidu'!R20)*2,0) -> 0
A13: =CONCATENATE('Rozpis úklidu'!A60," (",'Rozpis úklidu'!G60,")") -> ŠATNA PROFESOŘI - 1.PP (toaleta, sprcha) (sezonně) | B13: ='Rozpis úklidu'!E60*I13 -> 1 | C13: =IF('Rozpis úklidu'!P60=0,'Rozpis úklidu'!O60*B13/60,'Rozpis úklidu'!P60*B13/60)*I13 -> 0.04555555556 | D13: ='Rozpis úklidu'!N60 -> Typová činnost č.: 3, 14 a 15 Podlahová krytina: dlažba | E13: ='Rozpis úklidu'!R60*F13*I13 -> 0 | F13: =B13 -> 1 | G13: =IF(F13<B13,(B13-F13)*('Rozpis úklidu'!R60)*2,0) -> 0 | I13: =IF(OR(AND(WEEKNUM($B$3,1)<='Rozpis úklidu'!K60,WEEKNUM($B$3,1)>='Rozpis úklidu'!J60),AND(WEEKNUM($B$3,1)<='Rozpis úklidu'!K61,WEEKNUM($B$3,1)>='Rozpis úklidu'!J61)),1,0) -> 1
A14: =CONCATENATE('Rozpis úklidu'!A62," (",'Rozpis úklidu'!G62,")") -> ŠATNA muži - 1.PP (2x spch.kout, 2x toalety, 2x pisoar) (sezonně) | B14: ='Rozpis úklidu'!E62*I14 -> 1 | C14: =IF('Rozpis úklidu'!P62=0,'Rozpis úklidu'!O62*B14/60,'Rozpis úklidu'!P62*B14/60)*I14 -> 0.1303333333 | D14: ='Rozpis úklidu'!N62 -> Typová činnost č.: 3, 14 a 15 Podlahová krytina: dlažba | E14: ='Rozpis úklidu'!R62*F14*I14 -> 0 | F14: =B14 -> 1 | G14: =IF(F14<B14,(B14-F14)*('Rozpis úklidu'!R62)*2,0) -> 0 | I14: =IF(OR(AND(WEEKNUM($B$3,1)<='Rozpis úklidu'!K62,WEEKNUM($B$3,1)>='Rozpis úklidu'!J62),AND(WEEKNUM($B$3,1)<='Rozpis úklidu'!K63,WEEKNUM($B$3,1)>='Rozpis úklidu'!J63)),1,0) -> 1
A15: =CONCATENATE('Rozpis úklidu'!A64," (",'Rozpis úklidu'!G64,")") -> ŠATNA ženy - 1.PP (2x spch.kout, 2x toalety) (sezonně) | B15: ='Rozpis úklidu'!E64*I15 -> 1 | C15: =IF('Rozpis úklidu'!P64=0,'Rozpis úklidu'!O64*B15/60,'Rozpis úklidu'!P64*B15/60)*I15 -> 0.1303333333 | D15: ='Rozpis úklidu'!N64 -> Typová činnost č.: 3, 14 a 15 Podlahová krytina: dlažba | E15: ='Rozpis úklidu'!R64*F15*I15 -> 0 | F15: =B15 -> 1 | G15: =IF(F15<B15,(B15-F15)*('Rozpis úklidu'!R64)*2,0) -> 0 | I15: =IF(OR(AND(WEEKNUM($B$3,1)<='Rozpis úklidu'!K64,WEEKNUM($B$3,1)>='Rozpis úklidu'!J64),AND(WEEKNUM($B$3,1)<='Rozpis úklidu'!K65,WEEKNUM($B$3,1)>='Rozpis úklidu'!J65)),1,0) -> 1
A16: =CONCATENATE('Rozpis úklidu'!A72," (",'Rozpis úklidu'!G72,")") -> chodba, sport. areál (sezonně) | B16: ='Rozpis úklidu'!E72*I16 -> 1 | C16: =IF('Rozpis úklidu'!P72=0,'Rozpis úklidu'!O72*B16/60,'Rozpis úklidu'!P72*B16/60)*I16 -> 0.1362777778 | D16: ='Rozpis úklidu'!N72 -> Typová činnost č.: 3 Podlahová krytina: dlažba | E16: ='Rozpis úklidu'!R72*F16*I16 -> 0 | F16: =B16 -> 1 | G16: =IF(F16<B16,(B16-F16)*('Rozpis úklidu'!R72)*2,0) -> 0 | I16: =IF(OR(AND(WEEKNUM($B$3,1)<='Rozpis úklidu'!K72,WEEKNUM($B$3,1)>='Rozpis úklidu'!J72),AND(WEEKNUM($B$3,1)<='Rozpis úklidu'!K73,WEEKNUM($B$3,1)>='Rozpis úklidu'!J73)),1,0) -> 1
A17: =CONCATENATE('Rozpis úklidu'!A74," (",'Rozpis úklidu'!G74,")") -> šatna profesoři, sport. areál (toalety, sprchy) (sezonně) | B17: ='Rozpis úklidu'!E74*I17 -> 1 | C17: =IF('Rozpis úklidu'!P74=0,'Rozpis úklidu'!O74*B17/60,'Rozpis úklidu'!P74*B17/60)*I17 -> 0.4466666667 | D17: ='Rozpis úklidu'!N74 -> Typová činnost č.: 14 + 15 Podlahová krytina: dlažba | E17: ='Rozpis úklidu'!R74*F17*I17 -> 0 | F17: 1 | G17: =IF(F17<B17,(B17-F17)*('Rozpis úklidu'!R74)*2,0) -> 0 | I17: =IF(OR(AND(WEEKNUM($B$3,1)<='Rozpis úklidu'!K74,WEEKNUM($B$3,1)>='Rozpis úklidu'!J74),AND(WEEKNUM($B$3,1)<='Rozpis úklidu'!K75,WEEKNUM($B$3,1)>='Rozpis úklidu'!J75)),1,0) -> 1
A18: =CONCATENATE('Rozpis úklidu'!A76," (",'Rozpis úklidu'!G76,")") -> šatna ženy, sport.areál (3x toaleta, 4x sprcha) (sezonně) | B18: ='Rozpis úklidu'!E76*I18 -> 1 | C18: =IF('Rozpis úklidu'!P76=0,'Rozpis úklidu'!O76*B18/60,'Rozpis úklidu'!P76*B18/60)*I18 -> 0.1102222222 | D18: ='Rozpis úklidu'!N76 -> Typová činnost č.: 3, 14 a 15 Podlahová krytina: dlažba | E18: ='Rozpis úklidu'!R76*F18*I18 -> 0 | F18: =B18 -> 1 | G18: =IF(F18<B18,(B18-F18)*('Rozpis úklidu'!R76)*2,0) -> 0 | I18: =IF(OR(AND(WEEKNUM($B$3,1)<='Rozpis úklidu'!K76,WEEKNUM($B$3,1)>='Rozpis úklidu'!J76),AND(WEEKNUM($B$3,1)<='Rozpis úklidu'!K77,WEEKNUM($B$3,1)>='Rozpis úklidu'!J77)),1,0) -> 1
A19: =CONCATENATE('Rozpis úklidu'!A78," (",'Rozpis úklidu'!G78,")") -> šatna muži, sport.areál (3x pisoar, 2x toaleta, 4x sprcha) (sezonně) | B19: ='Rozpis úklidu'!E78*I19 -> 1 | C19: =IF('Rozpis úklidu'!P78=0,'Rozpis úklidu'!O78*B19/60,'Rozpis úklidu'!P24*B19/60)*I19 -> 0.2005555556 | D19: ='Rozpis úklidu'!N78 -> Typová činnost č.: 3, 14 a 15 Podlahová krytina: dlažba | E19: ='Rozpis úklidu'!R78*F19*I19 -> 0 | F19: 1 | G19: =IF(F19<B19,(B19-F19)*('Rozpis úklidu'!R78)*2,0) -> 0 | I19: =IF(OR(AND(WEEKNUM($B$3,1)<='Rozpis úklidu'!K78,WEEKNUM($B$3,1)>='Rozpis úklidu'!J78),AND(WEEKNUM($B$3,1)<='Rozpis úklidu'!K79,WEEKNUM($B$3,1)>='Rozpis úklidu'!J35)),1,0) -> 1
A20: Úklidová pohotovost + Operativní úklidové práce dle požadavku vedoucí koleje | B20: ='Základní údaje'!B11 -> 0 | E20: =B20/60*F20 -> 0 | G20: 0
B21: Celkem hodin | C21: =SUM(C5:C19) -> 2.883222222 | D21: K FAKTURACI CELKEM za CKJ: | E21: =SUM(E5:E20) -> 0 | G21: =SUM(G5:G20) -> 0 | H21: =E21*21+E74*4.5+E91 -> 0
A22: Podpis vedoucí směny: | D22: Podpis zástupce vedení CKJ:
A24: Karta úklidu | D24: xPORT
A25: DENNÍ ÚKLID DNE: | B25: =NOW() -> 2023-11-07T15:38:08
A26: ='Rozpis úklidu'!$A$3 -> Úklidová jednotka | B26: ='Rozpis úklidu'!$E$3 -> počet úklidových jednotek | C26: Doba úklidu [hod.] | D26: ='Rozpis úklidu'!$N$3 -> Popis činnosti | E26: ='Rozpis úklidu'!$S$3 -> cena celkem za všechny úklidové jednotky (prac. dny) [Kč] | F26: Správně uklizené jednotky | G26: Smluvní pokuta [Kč] | H26: Poznámka
A27: ='Rozpis úklidu'!A27 -> Schodiště ze SÚZ do xPORT | B27: ='Rozpis úklidu'!E27 -> 1 | C27: =IF('Rozpis úklidu'!P27=0,'Rozpis úklidu'!O27*B27/60,'Rozpis úklidu'!P27*B27/60) -> 0.10225 | D27: ='Rozpis úklidu'!N27 -> Typová činnost č.: 1 Podlahová krytina: dlažba | E27: ='Rozpis úklidu'!R27*F27 -> 0 | F27: =B27 -> 1 | G27: =IF(F27<B27,(B27-F27)*('Rozpis úklidu'!R27)*2,0) -> 0
A28: ='Rozpis úklidu'!A28 -> vstupní hala xPORT + recepce | B28: ='Rozpis úklidu'!E28 -> 1 | C28: =IF('Rozpis úklidu'!P28=0,'Rozpis úklidu'!O28*B28/60,'Rozpis úklidu'!P28*B28/60) -> 0.305625 | D28: ='Rozpis úklidu'!N28 -> Typová činnost č.: 1 Podlahová krytina: lino | E28: ='Rozpis úklidu'!R28*F28 -> 0 | F28: =B28 -> 1 | G28: =IF(F28<B28,(B28-F28)*('Rozpis úklidu'!R28)*2,0) -> 0
A29: ='Rozpis úklidu'!A29 -> Kuchyňka - 2. NP xPORT | B29: ='Rozpis úklidu'!E29 -> 1 | C29: =IF('Rozpis úklidu'!P29=0,'Rozpis úklidu'!O29*B29/60,'Rozpis úklidu'!P29*B29/60) -> 0.59625 | D29: ='Rozpis úklidu'!N29 -> Typová činnost č.: 5 Podlahová krytina: lino | E29: ='Rozpis úklidu'!R29*F29 -> 0 | F29: 1 | G29: =IF(F29<B29,(B29-F29)*('Rozpis úklidu'!R29)*2,0) -> 0
A30: ='Rozpis úklidu'!A30 -> WC - 2. NP xPORT | B30: ='Rozpis úklidu'!E30 -> 1 | C30: =IF('Rozpis úklidu'!P30=0,'Rozpis úklidu'!O30*B30/60,'Rozpis úklidu'!P30*B30/60) -> 0.125 | D30: ='Rozpis úklidu'!N30 -> Typová činnost č.: 14 Podlahová krytina: dlažba | E30: ='Rozpis úklidu'!R30*F30 -> 0 | F30: 1 | G30: =IF(F30<B30,(B30-F30)*('Rozpis úklidu'!R30)*2,0) -> 0
A31: ='Rozpis úklidu'!A31 -> Director - 2. NP xPORT | B31: ='Rozpis úklidu'!E31 -> 1 | C31: =IF('Rozpis úklidu'!P31=0,'Rozpis úklidu'!O31*B31/60,'Rozpis úklidu'!P31*B31/60) -> 0.06045833333 | D31: ='Rozpis úklidu'!N31 -> Typová činnost č.: 3 Podlahová krytina: koberec | E31: ='Rozpis úklidu'!R31*F31 -> 0 | F31: 1 | G31: =IF(F31<B31,(B31-F31)*('Rozpis úklidu'!R31)*2,0) -> 0
A32: ='Rozpis úklidu'!A32 -> Chill Out - 2. NP xPORT | B32: ='Rozpis úklidu'!E32 -> 1 | C32: =IF('Rozpis úklidu'!P32=0,'Rozpis úklidu'!O32*B32/60,'Rozpis úklidu'!P32*B32/60) -> 0.23775 | D32: ='Rozpis úklidu'!N32 -> Typová činnost č.: 3 Podlahová krytina: lino+koberec | E32: ='Rozpis úklidu'!R32*F32 -> 0 | F32: 1 | G32: =IF(F32<B32,(B32-F32)*('Rozpis úklidu'!R32)*2,0) -> 0
A33: ='Rozpis úklidu'!A33 -> Kuchyňka - 3. NP xPORT | B33: ='Rozpis úklidu'!E33 -> 1 | C33: =IF('Rozpis úklidu'!P33=0,'Rozpis úklidu'!O33*B33/60,'Rozpis úklidu'!P33*B33/60) -> 0.0475 | D33: ='Rozpis úklidu'!N33 -> Typová činnost č.: 5 Podlahová krytina: lino | E33: ='Rozpis úklidu'!R33*F33 -> 0 | F33: 1 | G33: =IF(F33<B33,(B33-F33)*('Rozpis úklidu'!R33)*2,0) -> 0
A34: ='Rozpis úklidu'!A34 -> Kanceláře - 3. NP xPORT | B34: ='Rozpis úklidu'!E34 -> 7 | C34: =IF('Rozpis úklidu'!P34=0,'Rozpis úklidu'!O34*B34/60,'Rozpis úklidu'!P34*B34/60) -> 1.219458333 | D34: ='Rozpis úklidu'!N34 -> Typová činnost č.: 3 Podlahová krytina: koberec | E34: ='Rozpis úklidu'!R34*F34 -> 0 | F34: 7 | G34: =IF(F34<B34,(B34-F34)*('Rozpis úklidu'!R34)*2,0) -> 0
A35: ='Rozpis úklidu'!A35 -> WC - 3. NP xPORT | B35: ='Rozpis úklidu'!E35 -> 1 | C35: =IF('Rozpis úklidu'!P35=0,'Rozpis úklidu'!O35*B35/60,'Rozpis úklidu'!P35*B35/60) -> 0.125 | D35: ='Rozpis úklidu'!N35 -> Typová činnost č.: 14 Podlahová krytina: dlažba | E35: ='Rozpis úklidu'!R35*F35 -> 0 | F35: 1 | G35: =IF(F35<B35,(B35-F35)*('Rozpis úklidu'!R35)*2,0) -> 0
A36: ='Rozpis úklidu'!A37 -> Bay Bridge - 2. NP xPORT | B36: ='Rozpis úklidu'!E37 -> 1 | C36: =IF('Rozpis úklidu'!P37=0,'Rozpis úklidu'!O37*B36/60,'Rozpis úklidu'!P37*B36/60) -> 0.2545 | D36: ='Rozpis úklidu'!N37 -> Typová činnost č.: 3 Podlahová krytina: koberec | E36: ='Rozpis úklidu'!R37*F36 -> 0 | F36: 1 | G36: =IF(F36<B36,(B36-F36)*('Rozpis úklidu'!R37)*2,0) -> 0
A37: ='Rozpis úklidu'!A38 -> San Francisco - 2. NP xPORT | B37: ='Rozpis úklidu'!E38 -> 1 | C37: =IF('Rozpis úklidu'!P38=0,'Rozpis úklidu'!O38*B37/60,'Rozpis úklidu'!P38*B37/60) -> 0.3495555556 | D37: ='Rozpis úklidu'!N38 -> Typová činnost č.: 3 Podlahová krytina: koberec | E37: ='Rozpis úklidu'!R38*F37 -> 0 | F37: 1 | G37: =IF(F37<B37,(B37-F37)*('Rozpis úklidu'!R38)*2,0) -> 0
A38: ='Rozpis úklidu'!A39 -> Recepce včetně meeting rooms - 2. NP xPORT | B38: ='Rozpis úklidu'!E39 -> 1 | C38: =IF('Rozpis úklidu'!P39=0,'Rozpis úklidu'!O39*B38/60,'Rozpis úklidu'!P39*B38/60) -> 0.6732777778 | D38: ='Rozpis úklidu'!N39 -> Typová činnost č.: 1 Podlahová krytina: lino | E38: ='Rozpis úklidu'!R39*F38 -> 0 | F38: 1 | G38: =IF(F38<B38,(B38-F38)*('Rozpis úklidu'!R39)*2,0) -> 0
A39: ='Rozpis úklidu'!A40 -> Open Space - 2. NP xPORT | B39: ='Rozpis úklidu'!E40 -> 1 | C39: =IF('Rozpis úklidu'!P40=0,'Rozpis úklidu'!O40*B39/60,'Rozpis úklidu'!P40*B39/60) -> 1.511111111 | D39: ='Rozpis úklidu'!N40 -> Typová činnost č.: 3 Podlahová krytina: koberec | E39: ='Rozpis úklidu'!R40*F39 -> 0 | F39: 1 | G39: =IF(F39<B39,(B39-F39)*('Rozpis úklidu'!R40)*2,0) -> 0
A40: ='Rozpis úklidu'!A41 -> Open Space kancelář - 2. NP xPORT | B40: ='Rozpis úklidu'!E41 -> 1 | C40: =IF('Rozpis úklidu'!P41=0,'Rozpis úklidu'!O41*B40/60,'Rozpis úklidu'!P41*B40/60) -> 0.2277777778 | D40: ='Rozpis úklidu'!N41 -> Typová činnost č.: 3 Podlahová krytina: koberec | E40: ='Rozpis úklidu'!R41*F40 -> 0 | F40: =B40 -> 1 | G40: =IF(F40<B40,(B40-F40)*('Rozpis úklidu'!R41)*2,0) -> 0
A41: ='Rozpis úklidu'!A42 -> Lobby - 2. NP xPORT | B41: ='Rozpis úklidu'!E42 -> 1 | C41: =IF('Rozpis úklidu'!P42=0,'Rozpis úklidu'!O42*B41/60,'Rozpis úklidu'!P42*B41/60) -> 0.147 | D41: ='Rozpis úklidu'!N42 -> Typová činnost č.: 3 Podlahová krytina: lino | E41: ='Rozpis úklidu'!R42*F41 -> 0 | F41: =B41 -> 1 | G41: =IF(F41<B41,(B41-F41)*('Rozpis úklidu'!R42)*2,0) -> 0
A42: ='Rozpis úklidu'!A43 -> Chodba - 2. NP xPORT | B42: ='Rozpis úklidu'!E43 -> 1 | C42: =IF('Rozpis úklidu'!P43=0,'Rozpis úklidu'!O43*B42/60,'Rozpis úklidu'!P43*B42/60) -> 0.09155555556 | D42: ='Rozpis úklidu'!N43 -> Typová činnost č.: 1 Podlahová krytina: koberec | E42: ='Rozpis úklidu'!R43*F42 -> 0 | F42: 1 | G42: =IF(F42<B42,(B42-F42)*('Rozpis úklidu'!R43)*2,0) -> 0
A43: ='Rozpis úklidu'!A44 -> World Trade Centre - 2. NP xPORT | B43: ='Rozpis úklidu'!E44 -> 1 | C43: =IF('Rozpis úklidu'!P44=0,'Rozpis úklidu'!O44*B43/60,'Rozpis úklidu'!P44*B43/60) -> 0.2423888889 | D43: ='Rozpis úklidu'!N44 -> Typová činnost č.: 3 Podlahová krytina: koberec | E43: ='Rozpis úklidu'!R44*F43 -> 0 | F43: 1 | G43: =IF(F43<B43,(B43-F43)*('Rozpis úklidu'!R44)*2,0) -> 0
A44: ='Rozpis úklidu'!A45 -> Malé zas. místnosti - 2. NP xPORT | B44: ='Rozpis úklidu'!E45 -> 1 | C44: =IF('Rozpis úklidu'!P45=0,'Rozpis úklidu'!O45*B44/60,'Rozpis úklidu'!P45*B44/60) -> 0.2776666667 | D44: ='Rozpis úklidu'!N45 -> Typová činnost č.: 3 Podlahová krytina: koberec | E44: ='Rozpis úklidu'!R45*F44 -> 0 | F44: 1 | G44: =IF(F44<B44,(B44-F44)*('Rozpis úklidu'!R45)*2,0) -> 0
A45: ='Rozpis úklidu'!A46 -> Area 51 - 2. NP xPORT | B45: ='Rozpis úklidu'!E46 -> 1 | C45: =IF('Rozpis úklidu'!P46=0,'Rozpis úklidu'!O46*B45/60,'Rozpis úklidu'!P46*B45/60) -> 0.1405 | D45: ='Rozpis úklidu'!N46 -> Typová činnost č.: 3 Podlahová krytina: koberec | E45: ='Rozpis úklidu'!R46*F45 -> 0 | F45: 1 | G45: =IF(F45<B45,(B45-F45)*('Rozpis úklidu'!R46)*2,0) -> 0
A46: ='Rozpis úklidu'!A47 -> Call rooms - 2. NP xPORT | B46: ='Rozpis úklidu'!E47 -> 1 | C46: =IF('Rozpis úklidu'!P47=0,'Rozpis úklidu'!O47*B46/60,'Rozpis úklidu'!P47*B46/60) -> 0.07044444444 | D46: ='Rozpis úklidu'!N47 -> Typová činnost č.: 3 Podlahová krytina: koberec | E46: ='Rozpis úklidu'!R47*F46 -> 0 | F46: 1 | G46: =IF(F46<B46,(B46-F46)*('Rozpis úklidu'!R47)*2,0) -> 0
A47: ='Rozpis úklidu'!A48 -> Manhattan - 2. NP xPORT | B47: ='Rozpis úklidu'!E48 -> 1 | C47: =IF('Rozpis úklidu'!P48=0,'Rozpis úklidu'!O48*B47/60,'Rozpis úklidu'!P48*B47/60) -> 0.1518333333 | D47: ='Rozpis úklidu'!N48 -> Typová činnost č.: 3 Podlahová krytina: koberec | E47: ='Rozpis úklidu'!R48*F47 -> 0 | F47: 1 | G47: =IF(F47<B47,(B47-F47)*('Rozpis úklidu'!R48)*2,0) -> 0
A48: ='Rozpis úklidu'!A49 -> Chodba - 3. NP xPORT | B48: ='Rozpis úklidu'!E49 -> 1 | C48: =IF('Rozpis úklidu'!P49=0,'Rozpis úklidu'!O49*B48/60,'Rozpis úklidu'!P49*B48/60) -> 0.03236111111 | D48: ='Rozpis úklidu'!N49 -> Typová činnost č.: 1 Podlahová krytina: koberec | E48: ='Rozpis úklidu'!R49*F48 -> 0 | F48: =B48 -> 1 | G48: =IF(F48<B48,(B48-F48)*('Rozpis úklidu'!R49)*2,0) -> 0
A49: ='Rozpis úklidu'!A50 -> Open Space - 3. NP xPORT | B49: ='Rozpis úklidu'!E50 -> 1 | C49: =IF('Rozpis úklidu'!P50=0,'Rozpis úklidu'!O50*B49/60,'Rozpis úklidu'!P50*B49/60) -> 0.6662777778 | D49: ='Rozpis úklidu'!N50 -> Typová činnost č.: 3 Podlahová krytina: koberec | E49: ='Rozpis úklidu'!R50*F49 -> 0 | F49: 1 | G49: =IF(F49<B49,(B49-F49)*('Rozpis úklidu'!R50)*2,0) -> 0
A50: ='Rozpis úklidu'!A51 -> Schodiště - 3. NP xPORT | B50: ='Rozpis úklidu'!E51 -> 1 | C50: =IF('Rozpis úklidu'!P51=0,'Rozpis úklidu'!O51*B50/60,'Rozpis úklidu'!P51*B50/60) -> 0.045125 | D50: ='Rozpis úklidu'!N51 -> Typová činnost č.: 1 Podlahová krytina: koberec | E50: ='Rozpis úklidu'!R51*F50 -> 0 | F50: 1 | G50: =IF(F50<B50,(B50-F50)*('Rozpis úklidu'!R51)*2,0) -> 0
A51: Úklidová pohotovost + Operativní úklidové práce dle požadavku vedoucí xPORT | B51: ='Základní údaje'!B11 -> 0 | E51: =B51/60*F51 -> 0 | G51: 0
B52: Celkem hodin | C52: =SUM(C27:C50) -> 7.700666667 | D52: K FAKTURACI CELKEM za xPORT: | E52: =SUM(E27:E51) -> 0 | G52: =SUM(G27:G51) -> 0
A53: Podpis vedoucí směny: | D53: Podpis zástupce vedení xPORT:
A55: Karta úklidu | D55: =$D$2 -> Centrum kolejí Jarov
A56: TÝDENNÍ ÚKLID TÝDEN: | B56: =WEEKNUM(TODAY(),1) -> 45 | D56: =(NOW()) -> 2023-11-07T15:38:08.010
A57: ='Rozpis úklidu'!$A$3 -> Úklidová jednotka | B57: ='Rozpis úklidu'!$E$3 -> počet úklidových jednotek | C57: Doba úklidu [hod.] | D57: ='Rozpis úklidu'!$N$3 -> Popis činnosti | E57: ='Rozpis úklidu'!$S$3 -> cena celkem za všechny úklidové jednotky (prac. dny) [Kč] | F57: Správně uklizené jednotky | G57: Smluvní pokuta [Kč] | H57: Poznámka
A58: =CONCATENATE('Rozpis úklidu'!A12," (",'Rozpis úklidu'!G12,")") -> SCHODIŠTĚ včetně podest - ze suterénu k bytům (3. NP) (3 podlaží) (týdně) | B58: =CEILING('Rozpis úklidu'!E12/('Rozpis úklidu'!K12-'Rozpis úklidu'!J12+1)*'Rozpis úklidu'!I12,1) -> 1 | C58: =IF('Rozpis úklidu'!P12=0,'Rozpis úklidu'!O12*B58/60,'Rozpis úklidu'!P12*B58/60) -> 0.5232222222 | D58: ='Rozpis úklidu'!N12 -> Typová činnost č.: 1 dlažba | E58: ='Rozpis úklidu'!R12*F58 -> 0 | F58: =B58 -> 1 | G58: =IF(F58<B58,(B58-F58)*('Rozpis úklidu'!R12)*2,0) -> 0
A59: =CONCATENATE('Rozpis úklidu'!A13," (",'Rozpis úklidu'!G13,")") -> Výtah ze suterénu k bytům (týdně) | B59: =CEILING('Rozpis úklidu'!E13/('Rozpis úklidu'!K13-'Rozpis úklidu'!J13+1)*'Rozpis úklidu'!I13,1) -> 1 | C59: =IF('Rozpis úklidu'!P13=0,'Rozpis úklidu'!O13*B59/60,'Rozpis úklidu'!P13*B59/60) -> 0.08333333333 | D59: ='Rozpis úklidu'!N13 -> Typová činnost č.: 16 | E59: ='Rozpis úklidu'!R13*F59 -> 0 | F59: =B59 -> 1 | G59: =IF(F59<B59,(B59-F59)*('Rozpis úklidu'!R13)*2,0) -> 0
A60: =CONCATENATE('Rozpis úklidu'!A14," (",'Rozpis úklidu'!G14,")") -> Chodba před byty, 3. NP (týdně) | B60: =CEILING('Rozpis úklidu'!E14/('Rozpis úklidu'!K14-'Rozpis úklidu'!J14+1)*'Rozpis úklidu'!I14,1) -> 1 | C60: =IF('Rozpis úklidu'!P14=0,'Rozpis úklidu'!O14*B60/60,'Rozpis úklidu'!P14*B60/60) -> 0.07375 | D60: ='Rozpis úklidu'!N14 -> Typová činnost č.: 1 dlažba | E60: ='Rozpis úklidu'!R14*F60 -> 0 | F60: 1 | G60: =IF(F60<B60,(B60-F60)*('Rozpis úklidu'!R14)*2,0) -> 0
A61: =CONCATENATE('Rozpis úklidu'!A17," (",'Rozpis úklidu'!G17," ",'Rozpis úklidu'!I17,"x )") -> KANCELÁŘE - 1. NP 14x (viz list "Kanceláře") (týdně 2x ) | B61: =CEILING('Rozpis úklidu'!E17/('Rozpis úklidu'!K17-'Rozpis úklidu'!J17+1)*'Rozpis úklidu'!I17,1) -> 2 | C61: =IF('Rozpis úklidu'!P17=0,'Rozpis úklidu'!O17*B61/60,'Rozpis úklidu'!P17*B61/60) -> 2.208333333 | D61: ='Rozpis úklidu'!N17 -> Typová činnost č.: 3. b koberec | E61: ='Rozpis úklidu'!R17*F61 -> 0 | F61: =B61 -> 2 | G61: =IF(F61<B61,(B61-F61)*('Rozpis úklidu'!R17)*2,0) -> 0
A62: =CONCATENATE('Rozpis úklidu'!A18," (",'Rozpis úklidu'!G18," ",'Rozpis úklidu'!I18,"x )") -> KANCELÁŘ 146 - 1. NP (týdně 2x ) | B62: =CEILING('Rozpis úklidu'!E18/('Rozpis úklidu'!K18-'Rozpis úklidu'!J18+1)*'Rozpis úklidu'!I18,1) -> 2 | C62: =IF('Rozpis úklidu'!P18=0,'Rozpis úklidu'!O18*B62/60,'Rozpis úklidu'!P18*B62/60) -> 0.1828333333 | D62: ='Rozpis úklidu'!N18 -> Typová činnost č.: 3. b linoleum | E62: ='Rozpis úklidu'!R18*F62 -> 0 | F62: =B62 -> 2 | G62: =IF(F62<B62,(B62-F62)*('Rozpis úklidu'!R18)*2,0) -> 0
A63: =CONCATENATE('Rozpis úklidu'!A19," (",'Rozpis úklidu'!G19," ",'Rozpis úklidu'!I19,"x )") -> Chodba před kancelářemi (týdně 2x ) | B63: =CEILING('Rozpis úklidu'!E19/('Rozpis úklidu'!K19-'Rozpis úklidu'!J19+1)*'Rozpis úklidu'!I19,1) -> 2 | C63: =IF('Rozpis úklidu'!P19=0,'Rozpis úklidu'!O19*B63/60,'Rozpis úklidu'!P19*B63/60) -> 1.162166667 | D63: ='Rozpis úklidu'!N19 -> Typová činnost č.: 3. b koberec/dlažba | E63: ='Rozpis úklidu'!R19*F63 -> 0 | F63: 2 | G63: =IF(F63<B63,(B63-F63)*('Rozpis úklidu'!R19)*2,0) -> 0
A64: =CONCATENATE('Rozpis úklidu'!A21," (",'Rozpis úklidu'!G21," ",'Rozpis úklidu'!I21,"x )") -> Zasedací místnost + komora - 1. NP (týdně 2x ) | B64: =CEILING('Rozpis úklidu'!E21/('Rozpis úklidu'!K20-'Rozpis úklidu'!J21+1)*'Rozpis úklidu'!I21,1) -> 2 | C64: =IF('Rozpis úklidu'!P21=0,'Rozpis úklidu'!O21*B64/60,'Rozpis úklidu'!P21*B64/60) -> 0.3248333333 | D64: ='Rozpis úklidu'!N21 -> Typová činnost č.: 17 koberec | E64: ='Rozpis úklidu'!R21*F64 -> 0 | F64: 2 | G64: =IF(F64<B64,(B64-F64)*('Rozpis úklidu'!R21)*2,0) -> 0
A65: =CONCATENATE('Rozpis úklidu'!A22," (",'Rozpis úklidu'!G22," ",'Rozpis úklidu'!I22,"x )") -> Vynesení pytel ze skartovačky (zasedací místnost) (týdně 1x ) | B65: =CEILING('Rozpis úklidu'!E22/('Rozpis úklidu'!K21-'Rozpis úklidu'!J22+1)*'Rozpis úklidu'!I22,1) -> 1 | C65: =IF('Rozpis úklidu'!P22=0,'Rozpis úklidu'!O22*B65/60,'Rozpis úklidu'!P22*B65/60) -> 0.1666666667 | D65: ='Rozpis úklidu'!N22 -> Typová činnost č.: 3. a | E65: ='Rozpis úklidu'!R22*F65 -> 0 | F65: =B65 -> 1 | G65: =IF(F65<B65,(B65-F65)*('Rozpis úklidu'!R22)*2,0) -> 0
A66: =CONCATENATE('Rozpis úklidu'!A23," (",'Rozpis úklidu'!G23," ",'Rozpis úklidu'!I23,"x )") -> Sprcha dámy (kanceláře) (týdně 2x ) | B66: =CEILING('Rozpis úklidu'!E23/('Rozpis úklidu'!K21-'Rozpis úklidu'!J23+1)*'Rozpis úklidu'!I23,1) -> 2 | C66: =IF('Rozpis úklidu'!P23=0,'Rozpis úklidu'!O23*B66/60,'Rozpis úklidu'!P23*B66/60) -> 0.0405 | D66: ='Rozpis úklidu'!N23 -> Typová činnost č.: 15 dlažba | E66: ='Rozpis úklidu'!R23*F66 -> 0 | F66: =B66 -> 2 | G66: =IF(F66<B66,(B66-F66)*('Rozpis úklidu'!R23)*2,0) -> 0
A67: =CONCATENATE('Rozpis úklidu'!A24," (",'Rozpis úklidu'!G24," ",'Rozpis úklidu'!I24,"x )") -> Sprcha páni (kanceláře) (týdně 2x ) | B67: =CEILING('Rozpis úklidu'!E24/('Rozpis úklidu'!K23-'Rozpis úklidu'!J24+1)*'Rozpis úklidu'!I24,1) -> 2 | C67: =IF('Rozpis úklidu'!P24=0,'Rozpis úklidu'!O24*B67/60,'Rozpis úklidu'!P24*B67/60) -> 0.02383333333 | D67: ='Rozpis úklidu'!N24 -> Typová činnost č.: 15 dlažba | E67: ='Rozpis úklidu'!R24*F67 -> 0 | F67: 2 | G67: =IF(F67<B67,(B67-F67)*('Rozpis úklidu'!R24)*2,0) -> 0
A68: =CONCATENATE('Rozpis úklidu'!A25," (",'Rozpis úklidu'!G25," ",'Rozpis úklidu'!I25,"x )") -> WC dány (kanceláře) 2x záchod, 2x umyvadlo (týdně 2x ) | B68: =CEILING('Rozpis úklidu'!E25/('Rozpis úklidu'!K24-'Rozpis úklidu'!J25+1)*'Rozpis úklidu'!I25,1) -> 2 | C68: =IF('Rozpis úklidu'!P25=0,'Rozpis úklidu'!O25*B68/60,'Rozpis úklidu'!P25*B68/60) -> 0.09333333333 | D68: ='Rozpis úklidu'!N25 -> Typová činnost č.: 14 dlažba | E68: ='Rozpis úklidu'!R25*F68 -> 0 | F68: 2 | G68: =IF(F68<B68,(B68-F68)*('Rozpis úklidu'!R25)*2,0) -> 0 | I68: =IF(OR(AND(WEEKNUM($B$3,1)<='Rozpis úklidu'!K66,WEEKNUM($B$3,1)>='Rozpis úklidu'!J66),AND(WEEKNUM($B$3,1)<='Rozpis úklidu'!K67,WEEKNUM($B$3,1)>='Rozpis úklidu'!J67)),1,0) -> 1
A69: =CONCATENATE('Rozpis úklidu'!A26," (",'Rozpis úklidu'!G26," ",'Rozpis úklidu'!I26,"x )") -> WC páni (kanceláře) 1x záchod, 2x umyvadlo, 2x pisoar (týdně 2x ) | B69: =CEILING('Rozpis úklidu'!E26/('Rozpis úklidu'!K25-'Rozpis úklidu'!J26+1)*'Rozpis úklidu'!I26,1) -> 2 | C69: =IF('Rozpis úklidu'!P26=0,'Rozpis úklidu'!O26*B69/60,'Rozpis úklidu'!P26*B69/60) -> 0.09333333333 | D69: ='Rozpis úklidu'!N26 -> Typová činnost č.: 14 dlažba | E69: ='Rozpis úklidu'!R26*F69 -> 0 | F69: 2 | G69: =IF(F69<B69,(B69-F69)*('Rozpis úklidu'!R26)*2,0) -> 0 | I69: =IF(OR(AND(WEEKNUM($B$3,1)<='Rozpis úklidu'!K68,WEEKNUM($B$3,1)>='Rozpis úklidu'!J68),AND(WEEKNUM($B$3,1)<='Rozpis úklidu'!K69,WEEKNUM($B$3,1)>='Rozpis úklidu'!J69)),1,0) -> 1
A70: =CONCATENATE('Rozpis úklidu'!A66," (",'Rozpis úklidu'!G66,")") -> CVIČEBNÍ SÁL A - 1.PP (sezonně) | B70: =CEILING('Rozpis úklidu'!E66/('Rozpis úklidu'!K66-'Rozpis úklidu'!J66+1)*'Rozpis úklidu'!I66,1)*I68 -> 1 | C70: =IF('Rozpis úklidu'!P66=0,'Rozpis úklidu'!O66*B70/60,'Rozpis úklidu'!P66*B70/60)*I68 -> 0.2962222222 | D70: ='Rozpis úklidu'!N66 -> Typová činnost č.: 3 Podlahová krytina: žiněnky | E70: ='Rozpis úklidu'!R66*F70*I68 -> 0 | F70: =B70 -> 1 | G70: =IF(F70<B70,(B70-F70)*('Rozpis úklidu'!R66)*2,0) -> 0 | I70: =IF(OR(AND(WEEKNUM($B$3,1)<='Rozpis úklidu'!K56,WEEKNUM($B$3,1)>='Rozpis úklidu'!J56),AND(WEEKNUM($B$3,1)<='Rozpis úklidu'!K57,WEEKNUM($B$3,1)>='Rozpis úklidu'!J57)),1,0) -> 1
A71: =CONCATENATE('Rozpis úklidu'!A68," (",'Rozpis úklidu'!G68,")") -> CVIČEBNÍ SÁL B - 1.PP (sezonně) | B71: =CEILING('Rozpis úklidu'!E68/('Rozpis úklidu'!K68-'Rozpis úklidu'!J68+1)*'Rozpis úklidu'!I68,1)*I69 -> 1 | C71: =IF('Rozpis úklidu'!P68=0,'Rozpis úklidu'!O68*B64/60,'Rozpis úklidu'!P68*B71/60)*I69 -> 1.146666667 | D71: ='Rozpis úklidu'!N68 -> Typová činnost č.: 3 Podlahová krytina: žiněnky | E71: ='Rozpis úklidu'!R68*F71*I69 -> 0 | F71: =B71 -> 1 | G71: =IF(F71<B71,(B71-F71)*('Rozpis úklidu'!R68)*2,0) -> 0 | I71: =IF(OR(AND(WEEKNUM($B$3,1)<='Rozpis úklidu'!K58,WEEKNUM($B$3,1)>='Rozpis úklidu'!J58),AND(WEEKNUM($B$3,1)<='Rozpis úklidu'!K59,WEEKNUM($B$3,1)>='Rozpis úklidu'!J59)),1,0) -> 1
A72: =CONCATENATE('Rozpis úklidu'!A56," (",'Rozpis úklidu'!G56,")") -> Předsíň tělocvičny (1.PP) (sezonně) | B72: =CEILING('Rozpis úklidu'!E56/('Rozpis úklidu'!K56-'Rozpis úklidu'!J56+1)*'Rozpis úklidu'!I56,1)*I70 -> 1 | C72: =IF('Rozpis úklidu'!P56=0,'Rozpis úklidu'!O56*B66/60,'Rozpis úklidu'!P56*B72/60)*I70 -> 0.1191666667 | D72: ='Rozpis úklidu'!N56 -> Typová činnost č.: 1 Podlahová krytina: koberec | E72: ='Rozpis úklidu'!R56*F72*I70 -> 0 | F72: =B72 -> 1 | G72: =IF(F72<B72,(B72-F72)*('Rozpis úklidu'!R56)*2,0) -> 0
A73: =CONCATENATE('Rozpis úklidu'!A58," (",'Rozpis úklidu'!G58,")") -> Chodba před tělocvičnami (1.PP) (sezonně) | B73: =CEILING('Rozpis úklidu'!E58/('Rozpis úklidu'!K58-'Rozpis úklidu'!J58+1)*'Rozpis úklidu'!I58,1)*I71 -> 1 | C73: =IF('Rozpis úklidu'!P58=0,'Rozpis úklidu'!O58*B67/60,'Rozpis úklidu'!P58*B73/60)*I71 -> 0.31225 | D73: ='Rozpis úklidu'!N58 -> Typová činnost č.: 1 Podlahová krytina: dlažba | E73: ='Rozpis úklidu'!R58*F73*I71 -> 0 | F73: 1 | G73: =IF(F73<B73,(B73-F73)*('Rozpis úklidu'!R58)*2,0) -> 0
B74: celkem hodin/den | C74: =SUM(C58:C73)/5 -> 1.370088889 | D74: K FAKTURACI CELKEM za CKJ: | E74: =SUM(E58:E73) -> 0 | G74: =SUM(G58:G73) -> 0
A75: Podpis vedoucí směny: | D75: Podpis zástupce vedení CKJ:
A77: Karta úklidu | D77: =$D$24 -> xPORT
A78: TÝDENNÍ ÚKLID TÝDEN: | B78: =WEEKNUM(TODAY(),1) -> 45 | D78: =(NOW()) -> 2023-11-07T15:38:08
A79: ='Rozpis úklidu'!$A$3 -> Úklidová jednotka | B79: ='Rozpis úklidu'!$E$3 -> počet úklidových jednotek | C79: Doba úklidu [hod.] | D79: ='Rozpis úklidu'!$N$3 -> Popis činnosti | E79: ='Rozpis úklidu'!$S$3 -> cena celkem za všechny úklidové jednotky (prac. dny) [Kč] | F79: Správně uklizené jednotky | G79: Smluvní pokuta [Kč] | H79: Poznámka
F80: 1
B81: celkem hodin/den | C81: =SUM(C80:C80)/5 -> 0 | D81: K FAKTURACI CELKEM za xPORT: | E81: =SUM(E80:E80) -> 0 | G81: =SUM(G80:G80) -> 0
A82: Podpis vedoucí směny: | D82: Podpis zástupce vedení xPORT:
A84: Karta úklidu | D84: =$D$2 -> Centrum kolejí Jarov
A85: MĚSÍČNÍ ÚKLID MĚSÍC: | B85: =MONTH(D85) -> 11 | D85: =NOW() -> 2023-11-07T15:38:08.010
A86: ='Rozpis úklidu'!$A$3 -> Úklidová jednotka | B86: ='Rozpis úklidu'!$E$3 -> počet úklidových jednotek | C86: Doba úklidu [hod.] | D86: ='Rozpis úklidu'!$N$3 -> Popis činnosti | E86: ='Rozpis úklidu'!$S$3 -> cena celkem za všechny úklidové jednotky (prac. dny) [Kč] | F86: Správně uklizené jednotky | G86: Smluvní pokuta [Kč] | H86: Poznámka
A87: =CONCATENATE('Rozpis úklidu'!A10," (",'Rozpis úklidu'!G10,")") -> Příplatek za silně znečištěné WC (měsíčně) | C87: =IF('Rozpis úklidu'!P10=0,'Rozpis úklidu'!O10*B87/60,'Rozpis úklidu'!P10*B87/60) -> 0 | D87: ='Rozpis úklidu'!N10 -> Typová činnost č.: 14 (nutno doložit fotodokumentací) | E87: ='Rozpis úklidu'!R10*F87 -> 0 | F87: =B87 -> 0 | G87: =IF(F87<B87,(B87-F87)*('Rozpis úklidu'!R10)*2,0) -> 0
A88: =CONCATENATE('Rozpis úklidu'!A11," (",'Rozpis úklidu'!G11,")") -> Mytí vnitřních skleněných ploch (měsíčně) | B88: =CEILING('Rozpis úklidu'!E11/('Rozpis úklidu'!K11-'Rozpis úklidu'!J11+1)*'Rozpis úklidu'!I11,1) -> 1 | C88: =IF('Rozpis úklidu'!P11=0,'Rozpis úklidu'!O11*B88/60,'Rozpis úklidu'!P11*B88/60) -> 1.566666667 | D88: ='Rozpis úklidu'!N11 -> Typová činnost č. 12 | E88: ='Rozpis úklidu'!R11*F88 -> 0 | F88: =B88 -> 1 | G88: =IF(F88<B88,(B88-F88)*('Rozpis úklidu'!R11)*2,0) -> 0
A89: =CONCATENATE('Rozpis úklidu'!A15," (",'Rozpis úklidu'!G15,")") -> ZADNÍ SCHODIŠTĚ včetně podest - ze suterénu k Xport (3. NP) (3 podlaží) (měsíčně) | B89: =CEILING('Rozpis úklidu'!E15/('Rozpis úklidu'!K15-'Rozpis úklidu'!J15+1)*'Rozpis úklidu'!I15,1) -> 1 | C89: =IF('Rozpis úklidu'!P12=0,'Rozpis úklidu'!O12*B89/60,'Rozpis úklidu'!P12*B89/60) -> 0.5232222222 | D89: ='Rozpis úklidu'!N15 -> Typová činnost č.: 1 dlažba | E89: ='Rozpis úklidu'!R15*F89 -> 0 | F89: =B89 -> 1 | G89: =IF(F89<B89,(B89-F89)*('Rozpis úklidu'!R15)*2,0) -> 0
A90: =CONCATENATE('Rozpis úklidu'!A80," (",'Rozpis úklidu'!G80,")") -> Mytí oken v kancelářích (ročně) | C90: =IF('Rozpis úklidu'!P80=0,'Rozpis úklidu'!O80*B90/60,'Rozpis úklidu'!P80*B90/60) -> 0 | D90: ='Rozpis úklidu'!N80 -> Typová činnost č. 12 | E90: ='Rozpis úklidu'!R80*F90 -> 0 | F90: =B90 -> 0 | G90: =IF(F90<B90,(B90-F90)*('Rozpis úklidu'!R80)*2,0) -> 0
B91: celkem hodin/den | C91: =SUM(C87:C90)/21 -> 0.09951851852 | D91: K FAKTURACI CELKEM za CKJ: | E91: =SUM(E87:E90) -> 0 | G91: =SUM(G89:G90) -> 0
A92: Podpis vedoucí směny: | D92: Podpis zástupce vedení CKJ:
A94: Karta úklidu | D94: =$D$24 -> xPORT
A95: MĚSÍČNÍ ÚKLID MĚSÍC: | B95: =MONTH(D95) -> 11 | D95: =NOW() -> 2023-11-07T15:38:08
A96: ='Rozpis úklidu'!$A$3 -> Úklidová jednotka | B96: ='Rozpis úklidu'!$E$3 -> počet úklidových jednotek | C96: Doba úklidu [hod.] | D96: ='Rozpis úklidu'!$N$3 -> Popis činnosti | E96: ='Rozpis úklidu'!$S$3 -> cena celkem za všechny úklidové jednotky (prac. dny) [Kč] | F96: Správně uklizené jednotky | G96: Smluvní pokuta [Kč] | H96: Poznámka
A97: =CONCATENATE('Rozpis úklidu'!A52," (",'Rozpis úklidu'!G52,")") -> Schod. ze SÚZ do xPORT - 2. NP xPORT (měsíčně) | B97: ='Rozpis úklidu'!E52/('Rozpis úklidu'!K52-'Rozpis úklidu'!J52+1)*'Rozpis úklidu'!I52 -> 1 | C97: =IF('Rozpis úklidu'!P52=0,'Rozpis úklidu'!O52*B97/60,'Rozpis úklidu'!P52*B97/60) -> 0.07429166667 | D97: ='Rozpis úklidu'!N52 -> Typová činnost č.: 1 Podlahová krytina: dlažba | E97: ='Rozpis úklidu'!R52*F97 -> 0 | F97: =B97 -> 1 | G97: =IF(F97<B97,(B97-F97)*('Rozpis úklidu'!R52)*2,0) -> 0
A98: =CONCATENATE('Rozpis úklidu'!A53," (",'Rozpis úklidu'!G53,")") -> Terasa - 3. NP xPORT (měsíčně) | B98: ='Rozpis úklidu'!E53/('Rozpis úklidu'!K53-'Rozpis úklidu'!J53+1)*'Rozpis úklidu'!I53 -> 1 | C98: =IF('Rozpis úklidu'!P53=0,'Rozpis úklidu'!O53*B98/60,'Rozpis úklidu'!P53*B98/60) -> 0.4221527778 | D98: ='Rozpis úklidu'!N53 -> Typová činnost č.: 2 Podlahová krytina: plast | E98: ='Rozpis úklidu'!R53*F98 -> 0 | F98: =B98 -> 1 | G98: =IF(F98<B98,(B98-F98)*('Rozpis úklidu'!R53)*2,0) -> 0
A99: =CONCATENATE('Rozpis úklidu'!A54," (",'Rozpis úklidu'!G54,")") -> Mytí vnitřních skleněných ploch xPORT (měsíčně) | B99: ='Rozpis úklidu'!E54/('Rozpis úklidu'!K54-'Rozpis úklidu'!J54+1)*'Rozpis úklidu'!I54 -> 1 | C99: =IF('Rozpis úklidu'!P54=0,'Rozpis úklidu'!O54*B99/60,'Rozpis úklidu'!P54*B99/60) -> 3.8 | D99: ='Rozpis úklidu'!N54 -> Typová činnost č.: 12 | E99: ='Rozpis úklidu'!R54*F99 -> 0 | F99: =B99 -> 1 | G99: =IF(F99<B99,(B99-F99)*('Rozpis úklidu'!R54)*2,0) -> 0
A100: =CONCATENATE('Rozpis úklidu'!A55," (",'Rozpis úklidu'!G55,")") -> Mytí oken xPORT (ročně) | C100: =IF('Rozpis úklidu'!P55=0,'Rozpis úklidu'!O55*B100/60,'Rozpis úklidu'!P55*B100/60) -> 0 | D100: ='Rozpis úklidu'!N55 -> Typová činnost č.: 12 | E100: ='Rozpis úklidu'!R55*F100 -> 0 | F100: 0 | G100: =IF(F100<B100,(B100-F100)*('Rozpis úklidu'!R55)*2,0) -> 0
A101: =CONCATENATE('Rozpis úklidu'!A36," (",'Rozpis úklidu'!G36,")") -> Příplatek za silně znečištěné WC xPORT (měsíčně) | C101: =IF('Rozpis úklidu'!P36=0,'Rozpis úklidu'!O36*B101/60,'Rozpis úklidu'!P36*B101/60) -> 0 | D101: ='Rozpis úklidu'!N36 -> Typová činnost č.: 14 (nutno doložit fotodokumentací) | E101: ='Rozpis úklidu'!R36*F101 -> 0 | F101: 0 | G101: =IF(F101<B101,(B101-F101)*('Rozpis úklidu'!R36)*2,0) -> 0
B102: celkem hodin/den | C102: =SUM(C97:C101)/21 -> 0.2045925926 | D102: K FAKTURACI CELKEM za xPORT: | E102: =SUM(E97:E101) -> 0 | G102: =SUM(G97:G101) -> 0
A103: Podpis vedoucí směny: | D103: Podpis zástupce vedení xPORT:

Sheet Činnosti úklidu
B1: Úklidová činnost
B2: Úklidová činnost probíhá v čase od 17:00 hod. do 24:00 hod. v jednosměnném provozu v pětidenním pracovním týdnu. V 17:00 začne úklid v prostorách CKJ a po té bude pokračovat v prostorách xPORTU. Při úklidu je potřeba používat úklidové, čistící a desinfekční prostředky vhodné pro daný předmět úklidu a dodržovat návody na použití příslušných úklidových, čistících a desinfekčních prostředků a bezpečnostní a hygienická pravidla.
A3: Definice pojmů:
A4: Zametání | B4: pomocí vhodného smetáku zamést dané podlahové plochy.
A5: Vytírání | B5: pomocí mopu za použití vody a odpovídajícího čistících prostředku vytřít dané podlahové plochy.
A6: Mytí | B6: pomocí hadru, utěrky nebo houbičky, za použití vody a odpovídajícího čistícího prostředku, umýt plochy nábytku, dveří, spotřebičů, keramických a jiných obkladů, topení apod.
A7: Čištění | B7: důkladné čištění, zvláště skvrn, za pomocí odpovídajících čisticích prostředků, ploch nábytku, dveří, spotřebičů, keramických a jiných obkladů, topení apod.
A8: Desinfekce | B8: po umytí nebo vyčištění daných ploch, podlah, spotřebičů aj. použít podle návodu odpovídající desinfekční prostředek.
A9: Leštění | B9: leštění všech skleněných a zrcadlových ploch za použití odpovídajícího přípravku na mytí a leštění skel.
A10: Luxování | B10: čištění podlah za použití vysavače.
A11: Strojové čištění | B11: se provádí za použití čistícího stroje na vodní nebo parní bázi (strojové čištění postelí, matrací, koberců apod.).
A12: Stírání prachu | B12: setření prachu vhodnou utěrkou za použití odpovídajícího přípravku na odstranění prachu, odstranění pavučin.
A13: Úklid odpadů | B13: řádné uvolnění, umytí, vyčištění a vydesinfikování odpadů na soc. zařízeních, WC, umývárnách a sprchových koutech za použití odpovídajících přípravků.
A14: Mimořádný úklid | B14: úklid znečištěného WC (mimo mísu), umývárny nebo společných prostor zvratky nebo exkrementy (uklízečka vyrozumí vedoucí/zástupce vedoucí koleje).
A15: Mytí oken | B15: umytí parapetů na mokro za použití odpovídajícího saponátu, umytí rámů oken na mokro za použití odpovídajícího saponátu, umytí a vyleštění oken odpovídajícím přípravkem na mytí a leštění oken.
A16: Zalévání květin | B16: zalití květin čistou odstátou vodou v přiměřeném množství s ohledem na druh rostliny, podle potřeby použít odpovídající hnojivo v dávkování podle návodu k použití.
A17: Vynášení a likvidace odpadu | B17: vynesení odpadu ze všech odpadních nádob (i z prostoru okolo těchto nádob), a ze skartovaček, umytí odpadních nádob a doplnění pytlů na odpadky do odpadních nádob, odpad dle možnosti vhodným způsobem třídit.
A20: Číslo typové činnosti | B20: Popis typových pracovních činností:
A21: 1. | B21: Úklidem společných prostor, podlah chodeb, schodišť a vestibulu se rozumí: zamést a vytřít podlahy, odstranit našlapané žvýkačky a jiné nečistoty, vyluxovat podlahy kryté kobercem. Umýt parapety, zábradlí a hasicí přístroje umístěné na chodbách, vyleštit skleněné plochy na chodbách a ve vestibulech, Otřít zábradlí u schodišť, setřít prach a pavučiny. Sepsat a nahlásit všechny zjištěné závady a škody.
A22: 2. | B22: Úklidem balkonů se rozumí: zamést a vytřít podlahy, odstranit našlapané žvýkačky a jiné nečistoty, umýt parapety a zábradlí. Odstranit pavučiny. Vynést odpady a popř. i vysypat popelníky.
A23: 3. | B23: Úklidem společenských, (studoven, kluboven apod.) zájmových (posiloven, tělocvičen apod.) a zasedacích místností, skladů a šaten se rozumí: zamést a vytřít podlahy, podlahy pokryté kobercem vyluxovat, setřít prach a pavučiny ze všech dosažitelných a volně přístupných míst a zařízení místností (topení, cvičební nářadí, parapety pod okny apod.), umýt a vyčistit skvrny kolem klik, dveří, vypínačů a světel. Srovnat nábytek a jiné vybavení místností. Srovnat nebo dověsit záclony a závěsy. Vyleštit zrcadla. Vynést odpad. Sepsat a nahlásit všechny zjištěné závady a škody.
A24: 3. a | B24: Denním úklidem kanceláří se rozumí: vynést koš
A25: 3. b | B25: Týdenním úklidem kanceláří se rozumí: podlahy pokryté kobercem vyluxovat, setřít prach a pavučiny ze všech dosažitelných a volně přístupných míst a zařízení místností (stoly-jen části nepokryté papíry, topení, parapety pod okny apod.), umýt a vyčistit skvrny kolem klik, na dveřích, vypínačů a světel. Vynést odpad. Sepsat a nahlásit všechny zjištěné závady a škody.
A26: 4. | B26: Úklidem prádelen se rozumí: zamést a vytřít podlahy, setřít prach a pavučiny ze všech dosažitelných a volně přístupných míst a zařízení místností (praček, topení, apod.). Vyčistit filtry praček, vyčistit zásobníky na prášek. Umýt a vyčistit dveře, kliky, vypínače a světla. Srovnat nebo dověsit záclony a závěsy. Vyleštit zrcadla. Vynést odpad. Sepsat a nahlásit všechny zjištěné závady a škody.
A27: 5. | B27: Úklidem kuchyněk se rozumí: umýt, vyčistit a vydesinfikovat sporák, vařič, mikrovlnnou troubu, digestoř, pracovní desky a zařízení místnosti kuchyňky. Umýt, vyčistit a vydesinfikovat obklady. Odmrazit a vyčistit lednici. Zamést a vytřít podlahy. Vynést odpad. Setřít prach a pavučiny. Sepsat a nahlásit všechny zjištěné závady a škody.
A28: 6. | B28: Generálním úklidem pokojů po odchodu studentů se rozumí: umýt nábytek z venku (postele, stoly, židle, police, skříně apod.) i zevnitř (skříně, šuplíky, peřináče, postele apod.) a vyčistit od skvrn. Vyleštit zrcadla a okna. Vyluxovat/strojově vyčistit matrace postelí. Setřít prach a pavučiny (včetně žaluzií). Umýt a vyčistit veškeré obložení, lišty, obrazy, dveře, kliky, rámy oken, parapety, vypínače, zásuvky, topení, světla, lampičky apod. Umýt ledničku zevnitř i zvenku. Zamést a vytřít podlahy, podlahy kryté kobercem vyluxovat, a to i pod a za postelí, křesly a závěsy. Srovnat nebo dověsit záclony a závěsy, srovnat nábytek a jiné vybavení pokoje. Vynést odpad, umýt, otřít a vyleštit odpadkový koš. Zlikvidovat případné komáry a mouchy. Vyvětrat a popř. i navonět. Sepsat a nahlásit všechny zjištěné závady a škody. Případné nalezené věci po ubytovaných předat vedení koleje.
A29: 7. | B29: Úklidem předsíní buněk se rozumí: úklid sociálního zařízení podle bodu 14. a 15. úklid kuchyňky podle bodu 5. Zamést a vytřít podlahy. Umýt a vyčistit pracovní plochy a nábytek. Setřít prach a pavučiny. Vynést odpad. Sepsat a nahlásit vedení koleje všechny závady a škody.
A30: 8. | B30: Úklidem hotelových pokojů po vystěhování se rozumí: umýt nábytek z venku (postele, stoly, židle, police, skříně apod.) i zevnitř (skříně, šuplíky, peřináče, postele apod.) a vyčistit od skvrn. Vyleštit zrcadla a okna. Převléct a ustlat postele, vyluxovat/strojově vyčistit matrace postelí. Setřít prach a pavučiny (včetně žaluzií). Umýt a vyčistit veškeré obložení, lišty, obrazy, dveře, kliky, rámy oken, parapety, vypínače, zásuvky, televizi, topení, světla, lampičky apod. Umýt nádobí. Umýt ledničku zevnitř i zvenku. Zamést a vytřít podlahy, podlahy kryté kobercem vyluxovat, a to i pod a za postelí, křesly a závěsy. Srovnat nebo dověsit záclony a závěsy, srovnat nábytek a jiné vybavení pokoje. Vynést odpad, umýt, otřít a vyleštit odpadkový koš. Zlikvidovat případné komáry a mouchy. Doplnit hotelové potřeby. Vyvětrat a popř. i navonět. Předat složené použité prádlo a ručníky skladní. Sepsat a nahlásit vedení koleje všechny závady a škody. Případné nalezené věci po hostech předat vedení koleje.
A31: 9. | B31: Úklidem hotelových pokojů v průběhu ubytování se rozumí: ustlání postelí, popř. výměna ložního prádla každý 4. den pobytu, výměna osušek a ručníků, doplnění toaletního papíru, vynesení odpadků, umytí koupelny (sprchový kout, WC, umyvadlo), vytření podlahy.
A32: 10. | B32: Přebráním uklizeného pokoje po studentech se rozumí: podle bodu 6. a 7. zkontrolovat úklid provedený studenty. Přebrat klíče od pokoje. Podepsat potvrzení o řádně provedeném úklidu a odevzdání klíčů. Sepsat a nahlásit všechny zjištěné závady a škody. V případě nutnosti upozornit studenty na nedostatky v úklidu s tím, že je musí ve stanovené době odstranit, po té provést novou kontrolu úklidu. V případě, že ani napodruhé nebude pokoj řádně uklizen nahlásit tuto skutečnost vedení koleje.
A33: 11. | B33: Úklidem výtahu se rozumí: zametení a vytření podlahy, vyčištění dveřních drážek, mytí stěn, mytí světel, jsou-li instalována vyleštění zrcadel.
A34: 12. | B34: Mytím oken se rozumí: mytí a leštění skel, mytí rámů, (unitř i zvenku) mytí parapetu, jsou-li instalovány setření žaluzií. Zvenku nelze mýt skleněné plochy z vnitřku budovy.
A35: 13. | B35: Čištěním matrací: vyčištění matrací parním strojem.
A36: 14. | B36: Úklidem WC se rozumí: umýt, vyčistit a vydesinfikovat místnost WC, umýt záchodovou mísu zevnitř i zvenku umýt nohu a trubku za WC, umýt prkýnko a nádobu na splachovací vodu, popř. umýt pisoáry, umyvadla, baterie, obklady, odpady, podlahy a dveře. Otřít držák na toaletní papír. Doplnit toaletní papír a papírové ručníky. Umýt dlaždičky a silikon od plísně. Vylít vodu a otřít pouzdro na WC štětku. Vyleštit zrcadla. Vynést odpad. Setřít prach a pavučiny. Vždy za použití odpovídajícího mycího/čistícího přípravku.
A37: 15. | B37: Úklidem koupelen a sprch se rozumí: umýt, vyčistit a vydesinfikovat umyvadlo zevnitř i zvenku včetně trubek pod ním, baterie, sprchový kout, obklady, poličku nad umyvadlem i ve sprchovém koutě, odpady, podlahy a dveře. Umýt stěny sprchového koutu, gumové těsnění popř. závěs sprchového koutu. Odstranit rez a vodní kámen. Doplnit papírové ručníky. Vynést odpad. Vyleštit zrcadlo, poličku, sprchu a držák na sprchu. Umýt dlaždičky a silikon od plísně. Vynést odpad. Setřít prach a pavučiny. Vždy za použití odpovídajícího mycího/čistícího přípravku
A38: 16. | B38: Úklidem výtahů se rozumí: vytřít podlahu, otřít stěny a dveře, vyleštit zrcadlo a chromové části, vyčistit drážku u dveří.
A39: 17. | B39: Úklidem zasedacé místnosti se rozumí: vyluxovat podlahu, otřít stoly, odnést případně zanechané nádobí do kuchyňky, otřít a srovnat židle, vynést tříděný odpad (papír a plasty) z komory, vytřít pavučiny, nahlásit zjištěné závady.

Sheet kanc.+skleň.pl.
A1: Kancelář SÚZ č.: | B1: plocha [m2] | C1: krytina: | E1: Vnitřní skleněné plochy SÚZ | F1: plocha [m2] | H1: Okna SÚZ (modul) [m2] | I1: počet | J1: plocha [m2] | L1: vnitřní skleněné stěny Xport [m2] | O1: Okna Xport [m2] | P1: počet | Q1: plocha [m2]
A2: 123 | B2: =5.5*3.4 -> 18.7 | C2: koberec | E2: Dveře SÚZ 3x | F2: =3*(2.21*1.8) -> 11.934 | H2: =1.8*1.2 -> 2.16 | I2: =24+9+27+5 -> 65 | J2: =H2*I2 -> 140.4 | L2: =7*2.6 -> 18.2 | O2: =1.1*2.7 -> 2.97 | P2: 36 | Q2: =O2*P2 -> 106.92
A3: 124 | B3: =5.5*3.4 -> 18.7 | C3: koberec | E3: Vstupní dveře do haly 2x | F3: =2*(5.4*2.4) -> 25.92 | H3: =(1.13*2.6)+(1.13*4) -> 7.458 | I3: 8 | J3: =H3*I3 -> 59.664 | L3: =2*2.6 -> 5.2 | O3: =1.1*4 -> 4.4 | P3: =29+9 -> 38 | Q3: =O3*P3 -> 167.2
A4: 125 | B4: =5.5*3.5 -> 19.25 | C4: koberec | E4: Dveře do menzy | F4: =2.15*1.8 -> 3.87 | J4: 0 | L4: =5.65*3.6 -> 20.34 | O4: =1.3*2.7 -> 3.51 | P4: 1 | Q4: 3.51
A5: 126 | B5: =5.5*5.7 -> 31.35 | C5: koberec | E5: Okna v hale 2x | F5: =(1.27*0.9)+(1.3*1.8) -> 3.483 | H5: 1 | I5: 19 | J5: =H5*I5 -> 19 | L5: =1.7*2.2 -> 3.74 | O5: =1.1*1.9 -> 2.09 | P5: 11 | Q5: 22.99
A6: 127 | B6: =5.5*3.1 -> 17.05 | C6: koberec | E6: zrcadlo, hala + chodba | F6: =(0.36*1.75)+(0.47*1.5) -> 1.335 | H6: 0.5 | I6: 6 | J6: =H6*I6 -> 3 | L6: =2*(5*2.3) -> 23 | O6: =1.5*1.9 -> 2.85 | P6: 6 | Q6: 17.1
A7: 137 | B7: =5.6*4.2+3*2 -> 29.52 | C7: koberec | E7: CELKEM | F7: =SUM(F2:F6) -> 46.542 | H7: =1.8*1.2 -> 2.16 | I7: =30+12+27 -> 69 | J7: =H7*I7 -> 149.04 | L7: =1.6*2.3 -> 3.68 | O7: =2*4 -> 8 | P7: 1 | Q7: 8
A8: 138 | B8: =5.5*3 -> 16.5 | C8: koberec | E8: zaokrouhleno: | F8: =TRUNC(F7+1,0) -> 47 | I8: CELKEM | J8: =SUM(J2:J7) -> 371.104 | L8: =2*(1*2.2) -> 4.4 | P8: CELKEM | Q8: =SUM(Q3:Q7) -> 218.8
A9: 139 | B9: =5.5*3 -> 16.5 | C9: koberec | I9: zaokrouhleno: | J9: =TRUNC(J8+1,0) -> 372 | L9: =3.9*2.4 -> 9.36 | P9: zaokrouhleno: | Q9: =TRUNC(Q8+1,0) -> 219
A10: 140 | B10: =5.5*2.7 -> 14.85 | C10: koberec | L10: =8*(1.6*2) -> 25.6
A11: 141 | B11: =5.5*2.7 -> 14.85 | C11: koberec | L11: CELKEM | M11: =SUM(L2:L10) -> 113.52
A12: 142 | B12: =5.5*3.45 -> 18.975 | C12: koberec | L12: zaokrouhleno: | M12: =TRUNC(M11+1,0) -> 114
A13: 143 | B13: =5.5*3 -> 16.5 | C13: koberec
A14: 144 | B14: =5.5*2.85 -> 15.675 | C14: koberec
A15: 145 | B15: =5.5*3 -> 16.5 | C15: koberec
A16: CELKEM | B16: =SUM(B2:B15) -> 264.92
A17: zaokrouhleno: | B17: =TRUNC(B16+1,0) -> 265
A19: 146 | B19: =3.8*2.3+2.4*5.5 -> 21.94 | C19: linoleum
